Workbook

Sheet Animation
A1: EM or "soft" clustering. Start by guessing 3 cluster centers. For each data point, figure out the probability that it came from each of the cluster centers (the closest center is most likely). Then recompute the centers based on the data points fractionally assigned to them.
A3: Note: The Viterbi approximation to this algorithm (easier to implement and converges in a few iterations) is called "k-means" or "hard" clustering. One can get the same effect by using a small variance.
A5: To watch the progress of the algorithm, use the scrollbar between the graphs.
A6: To see the underlying calculations, click the "Calculation" worksheet tab at the bottom of this worksheet.
B8: Initial clusters (centers and variances)
C9: x | D9: y | E9: Variance | F9: Reestimate variance?
B10: Red | C10: 2 | D10: 1 | E10: 1 | F10: FALSE | G10: Warning: Setting this to TRUE is a nice idea but tends to trap us in local maxima
B11: Green | C11: 2 | D11: 2 | E11: =E10 -> 1
B12: Blue | C12: -1 | D12: 5 | E12: =E10 -> 1
A14: Switch to other window (Window menu) for other views. Scrollbar may not work in all views. | D14: ITERATION: | G14: 0 | H14: If you need more than 20 iterations, use Edit / Copy and Edit / PasteSpecial / Values to copy the values from the "Final clusters" table (below) over the "Initial clusters" table (above). Each repetition of the PasteSpecial command will get you another 6 iterations.
N17: Data points | P17: Posterior probabilities (curr. iteration)
N18: x | O18: y | P18: p(red|point) | Q18: p(green|point) | R18: p(blue|point)
N19: 3 | O19: 4 | P19: =OFFSET(Calculation!I17,0,$G$14*11) -> 0.07568480743 | Q19: =OFFSET(Calculation!J17,0,$G$14*11) -> 0.9220297094 | R19: =OFFSET(Calculation!K17,0,$G$14*11) -> 0.002285483149
N20: 5 | O20: 2 | P20: =OFFSET(Calculation!I18,0,$G$14*11) -> 0.3775406652 | Q20: =OFFSET(Calculation!J18,0,$G$14*11) -> 0.6224593253 | R20: =OFFSET(Calculation!K18,0,$G$14*11) -> 9.480042916e-09
N21: 1 | O21: 1.5 | P21: =OFFSET(Calculation!I19,0,$G$14*11) -> 0.4998617671 | Q21: =OFFSET(Calculation!J19,0,$G$14*11) -> 0.4998617671 | R21: =OFFSET(Calculation!K19,0,$G$14*11) -> 0.0002764657306
N22: 1 | O22: 0 | P22: =OFFSET(Calculation!I20,0,$G$14*11) -> 0.8175735598 | Q22: =OFFSET(Calculation!J20,0,$G$14*11) -> 0.1824253193 | R22: =OFFSET(Calculation!K20,0,$G$14*11) -> 1.120859901e-06
N23: 0 | O23: 0 | P23: =OFFSET(Calculation!I21,0,$G$14*11) -> 0.8175560705 | Q23: =OFFSET(Calculation!J21,0,$G$14*11) -> 0.1824214169 | R23: =OFFSET(Calculation!K21,0,$G$14*11) -> 2.251259133e-05
N24: 2 | O24: 3.5 | P24: =OFFSET(Calculation!I22,0,$G$14*11) -> 0.1180478508 | Q24: =OFFSET(Calculation!J22,0,$G$14*11) -> 0.8722621916 | R24: =OFFSET(Calculation!K22,0,$G$14*11) -> 0.009689957667
N25: 5 | O25: 6 | P25: =OFFSET(Calculation!I23,0,$G$14*11) -> 0.01096007381 | Q25: =OFFSET(Calculation!J23,0,$G$14*11) -> 0.9865944032 | R25: =OFFSET(Calculation!K23,0,$G$14*11) -> 0.002445523024
N26: 6 | O26: 2 | P26: =OFFSET(Calculation!I24,0,$G$14*11) -> 0.3775406686 | Q26: =OFFSET(Calculation!J24,0,$G$14*11) -> 0.6224593309 | R26: =OFFSET(Calculation!K24,0,$G$14*11) -> 4.719835491e-10
N27: 1 | O27: 3 | P27: =OFFSET(Calculation!I25,0,$G$14*11) -> 0.1752903921 | Q27: =OFFSET(Calculation!J25,0,$G$14*11) -> 0.7855970346 | R27: =OFFSET(Calculation!K25,0,$G$14*11) -> 0.03911257327
N28: 5 | O28: 0 | P28: =OFFSET(Calculation!I26,0,$G$14*11) -> 0.8175744762 | Q28: =OFFSET(Calculation!J26,0,$G$14*11) -> 0.1824255238 | R28: =OFFSET(Calculation!K26,0,$G$14*11) -> 6.886808967e-12
A40: In these graphs, the three solid circles represent the cluster centroids. (Their areas are the cluster variances, so their radii represent about 0.564 standard deviations.)
A42: The white circles of area 1 are the data points. Each data point carries hollow circles in red, green, and blue, whose areas are proportional to p(red | point), p(green | point), and p(blue | point).
B46: Current clusters | G46: Final clusters
C47: x | D47: y | E47: Variance | H47: x | I47: y | J47: Variance
B48: Red | C48: =OFFSET(C55,$G$14,0) -> 2 | D48: =OFFSET(D55,$G$14,0) -> 1 | E48: =OFFSET(E55,$G$14,0) -> 1 | G48: Red | H48: =Calculation!HN7 -> 0.7688091192 | I48: =Calculation!HO7 -> 1.108722336 | J48: =Calculation!HP7 -> 1
B49: Green | C49: =OFFSET(F55,$G$14,0) -> 2 | D49: =OFFSET(G55,$G$14,0) -> 2 | E49: =OFFSET(H55,$G$14,0) -> 1 | G49: Green | H49: =Calculation!HN8 -> 5.331171087 | I49: =Calculation!HO8 -> 1.332922982 | J49: =Calculation!HP8 -> 1
B50: Blue | C50: =OFFSET(I55,$G$14,0) -> -1 | D50: =OFFSET(J55,$G$14,0) -> 5 | E50: =OFFSET(K55,$G$14,0) -> 1 | G50: Blue | H50: =Calculation!HN9 -> 3.270761731 | I50: =Calculation!HO9 -> 4.443752009 | J50: =Calculation!HP9 -> 1
B52: Evolution of clusters over time
C53: Red | F53: Green | I53: Blue
B54: Iteration | C54: x | D54: y | E54: Variance | F54: x | G54: y | H54: Variance | I54: x | J54: y | K54: Variance
B55: 0 | C55: =OFFSET(Calculation!B$7,0,11*$B55) -> 2 | D55: =OFFSET(Calculation!C$7,0,11*$B55) -> 1 | E55: =OFFSET(Calculation!D$7,0,11*$B55) -> 1 | F55: =OFFSET(Calculation!B$8,0,11*$B55) -> 2 | G55: =OFFSET(Calculation!C$8,0,11*$B55) -> 2 | H55: =OFFSET(Calculation!D$8,0,11*$B55) -> 1 | I55: =OFFSET(Calculation!B$9,0,11*$B55) -> -1 | J55: =OFFSET(Calculation!C$9,0,11*$B55) -> 5 | K55: =OFFSET(Calculation!D$9,0,11*$B55) -> 1
B56: =1+B55 -> 1 | C56: =OFFSET(Calculation!B$7,0,11*$B56) -> 2.50793127 | D56: =OFFSET(Calculation!C$7,0,11*$B56) -> 0.8727534918 | E56: =OFFSET(Calculation!D$7,0,11*$B56) -> 1 | F56: =OFFSET(Calculation!B$8,0,11*$B56) -> 3.186913899 | G56: =OFFSET(Calculation!C$8,0,11*$B56) -> 3.116311639 | H56: =OFFSET(Calculation!D$8,0,11*$B56) -> 1 | I56: =OFFSET(Calculation!B$9,0,11*$B56) -> 1.446199458 | J56: =OFFSET(Calculation!C$9,0,11*$B56) -> 3.25971531 | K56: =OFFSET(Calculation!D$9,0,11*$B56) -> 1
B57: =1+B56 -> 2 | C57: =OFFSET(Calculation!B$7,0,11*$B57) -> 2.104216639 | D57: =OFFSET(Calculation!C$7,0,11*$B57) -> 0.4253198336 | E57: =OFFSET(Calculation!D$7,0,11*$B57) -> 1 | F57: =OFFSET(Calculation!B$8,0,11*$B57) -> 4.441336817 | G57: =OFFSET(Calculation!C$8,0,11*$B57) -> 3.487747649 | H57: =OFFSET(Calculation!D$8,0,11*$B57) -> 1 | I57: =OFFSET(Calculation!B$9,0,11*$B57) -> 1.518156002 | J57: =OFFSET(Calculation!C$9,0,11*$B57) -> 2.900243491 | K57: =OFFSET(Calculation!D$9,0,11*$B57) -> 1
B58: 3 | C58: =OFFSET(Calculation!B$7,0,11*$B58) -> 1.786579471 | D58: =OFFSET(Calculation!C$7,0,11*$B58) -> 0.2605802367 | E58: =OFFSET(Calculation!D$7,0,11*$B58) -> 1 | F58: =OFFSET(Calculation!B$8,0,11*$B58) -> 4.878330199 | G58: =OFFSET(Calculation!C$8,0,11*$B58) -> 3.344803934 | H58: =OFFSET(Calculation!D$8,0,11*$B58) -> 1 | I58: =OFFSET(Calculation!B$9,0,11*$B58) -> 1.5764906 | J58: =OFFSET(Calculation!C$9,0,11*$B58) -> 2.941607885 | K58: =OFFSET(Calculation!D$9,0,11*$B58) -> 1
B59: 4 | C59: =OFFSET(Calculation!B$7,0,11*$B59) -> 1.457644341 | D59: =OFFSET(Calculation!C$7,0,11*$B59) -> 0.2852898322 | E59: =OFFSET(Calculation!D$7,0,11*$B59) -> 1 | F59: =OFFSET(Calculation!B$8,0,11*$B59) -> 5.03650291 | G59: =OFFSET(Calculation!C$8,0,11*$B59) -> 3.057297076 | H59: =OFFSET(Calculation!D$8,0,11*$B59) -> 1 | I59: =OFFSET(Calculation!B$9,0,11*$B59) -> 1.715236608 | J59: =OFFSET(Calculation!C$9,0,11*$B59) -> 3.086856633 | K59: =OFFSET(Calculation!D$9,0,11*$B59) -> 1
B60: 5 | C60: =OFFSET(Calculation!B$7,0,11*$B60) -> 0.8817267043 | D60: =OFFSET(Calculation!C$7,0,11*$B60) -> 0.3873679027 | E60: =OFFSET(Calculation!D$7,0,11*$B60) -> 1 | F60: =OFFSET(Calculation!B$8,0,11*$B60) -> 5.131116187 | G60: =OFFSET(Calculation!C$8,0,11*$B60) -> 2.681549318 | H60: =OFFSET(Calculation!D$8,0,11*$B60) -> 1 | I60: =OFFSET(Calculation!B$9,0,11*$B60) -> 1.83605791 | J60: =OFFSET(Calculation!C$9,0,11*$B60) -> 3.234096752 | K60: =OFFSET(Calculation!D$9,0,11*$B60) -> 1
B61: 6 | C61: =OFFSET(Calculation!B$7,0,11*$B61) -> 0.6584097443 | D61: =OFFSET(Calculation!C$7,0,11*$B61) -> 0.4648932381 | E61: =OFFSET(Calculation!D$7,0,11*$B61) -> 1 | F61: =OFFSET(Calculation!B$8,0,11*$B61) -> 5.191246229 | G61: =OFFSET(Calculation!C$8,0,11*$B61) -> 2.514660571 | H61: =OFFSET(Calculation!D$8,0,11*$B61) -> 1 | I61: =OFFSET(Calculation!B$9,0,11*$B61) -> 1.945579129 | J61: =OFFSET(Calculation!C$9,0,11*$B61) -> 3.363582551 | K61: =OFFSET(Calculation!D$9,0,11*$B61) -> 1
B62: 7 | C62: =OFFSET(Calculation!B$7,0,11*$B62) -> 0.6585833111 | D62: =OFFSET(Calculation!C$7,0,11*$B62) -> 0.4977056513 | E62: =OFFSET(Calculation!D$7,0,11*$B62) -> 1 | F62: =OFFSET(Calculation!B$8,0,11*$B62) -> 5.219709944 | G62: =OFFSET(Calculation!C$8,0,11*$B62) -> 2.424658762 | H62: =OFFSET(Calculation!D$8,0,11*$B62) -> 1 | I62: =OFFSET(Calculation!B$9,0,11*$B62) -> 2.05828668 | J62: =OFFSET(Calculation!C$9,0,11*$B62) -> 3.476342302 | K62: =OFFSET(Calculation!D$9,0,11*$B62) -> 1
B63: 8 | C63: =OFFSET(Calculation!B$7,0,11*$B63) -> 0.6652394584 | D63: =OFFSET(Calculation!C$7,0,11*$B63) -> 0.5260878821 | E63: =OFFSET(Calculation!D$7,0,11*$B63) -> 1 | F63: =OFFSET(Calculation!B$8,0,11*$B63) -> 5.238853197 | G63: =OFFSET(Calculation!C$8,0,11*$B63) -> 2.287964488 | H63: =OFFSET(Calculation!D$8,0,11*$B63) -> 1 | I63: =OFFSET(Calculation!B$9,0,11*$B63) -> 2.207238326 | J63: =OFFSET(Calculation!C$9,0,11*$B63) -> 3.615784808 | K63: =OFFSET(Calculation!D$9,0,11*$B63) -> 1
B64: 9 | C64: =OFFSET(Calculation!B$7,0,11*$B64) -> 0.6726413095 | D64: =OFFSET(Calculation!C$7,0,11*$B64) -> 0.5612275779 | E64: =OFFSET(Calculation!D$7,0,11*$B64) -> 1 | F64: =OFFSET(Calculation!B$8,0,11*$B64) -> 5.269211472 | G64: =OFFSET(Calculation!C$8,0,11*$B64) -> 1.967002128 | H64: =OFFSET(Calculation!D$8,0,11*$B64) -> 1 | I64: =OFFSET(Calculation!B$9,0,11*$B64) -> 2.469834959 | J64: =OFFSET(Calculation!C$9,0,11*$B64) -> 3.849218198 | K64: =OFFSET(Calculation!D$9,0,11*$B64) -> 1
B65: 10 | C65: =OFFSET(Calculation!B$7,0,11*$B65) -> 0.6847132503 | D65: =OFFSET(Calculation!C$7,0,11*$B65) -> 0.6306356129 | E65: =OFFSET(Calculation!D$7,0,11*$B65) -> 1 | F65: =OFFSET(Calculation!B$8,0,11*$B65) -> 5.316112673 | G65: =OFFSET(Calculation!C$8,0,11*$B65) -> 1.442714153 | H65: =OFFSET(Calculation!D$8,0,11*$B65) -> 1 | I65: =OFFSET(Calculation!B$9,0,11*$B65) -> 2.779571886 | J65: =OFFSET(Calculation!C$9,0,11*$B65) -> 4.116100886 | K65: =OFFSET(Calculation!D$9,0,11*$B65) -> 1
B66: =1+B65 -> 11 | C66: =OFFSET(Calculation!B$7,0,11*$B66) -> 0.7047466841 | D66: =OFFSET(Calculation!C$7,0,11*$B66) -> 0.7634532582 | E66: =OFFSET(Calculation!D$7,0,11*$B66) -> 1 | F66: =OFFSET(Calculation!B$8,0,11*$B66) -> 5.33070796 | G66: =OFFSET(Calculation!C$8,0,11*$B66) -> 1.337012848 | H66: =OFFSET(Calculation!D$8,0,11*$B66) -> 1 | I66: =OFFSET(Calculation!B$9,0,11*$B66) -> 2.917573088 | J66: =OFFSET(Calculation!C$9,0,11*$B66) -> 4.217145198 | K66: =OFFSET(Calculation!D$9,0,11*$B66) -> 1
B67: =1+B66 -> 12 | C67: =OFFSET(Calculation!B$7,0,11*$B67) -> 0.7222856606 | D67: =OFFSET(Calculation!C$7,0,11*$B67) -> 0.8764947272 | E67: =OFFSET(Calculation!D$7,0,11*$B67) -> 1 | F67: =OFFSET(Calculation!B$8,0,11*$B67) -> 5.331670935 | G67: =OFFSET(Calculation!C$8,0,11*$B67) -> 1.333861584 | H67: =OFFSET(Calculation!D$8,0,11*$B67) -> 1 | I67: =OFFSET(Calculation!B$9,0,11*$B67) -> 3.015615425 | J67: =OFFSET(Calculation!C$9,0,11*$B67) -> 4.279849303 | K67: =OFFSET(Calculation!D$9,0,11*$B67) -> 1
B68: 13 | C68: =OFFSET(Calculation!B$7,0,11*$B68) -> 0.7361735096 | D68: =OFFSET(Calculation!C$7,0,11*$B68) -> 0.9588274951 | E68: =OFFSET(Calculation!D$7,0,11*$B68) -> 1 | F68: =OFFSET(Calculation!B$8,0,11*$B68) -> 5.331647564 | G68: =OFFSET(Calculation!C$8,0,11*$B68) -> 1.333367922 | H68: =OFFSET(Calculation!D$8,0,11*$B68) -> 1 | I68: =OFFSET(Calculation!B$9,0,11*$B68) -> 3.097583957 | J68: =OFFSET(Calculation!C$9,0,11*$B68) -> 4.332211682 | K68: =OFFSET(Calculation!D$9,0,11*$B68) -> 1
B69: 14 | C69: =OFFSET(Calculation!B$7,0,11*$B69) -> 0.7469388875 | D69: =OFFSET(Calculation!C$7,0,11*$B69) -> 1.016137435 | E69: =OFFSET(Calculation!D$7,0,11*$B69) -> 1 | F69: =OFFSET(Calculation!B$8,0,11*$B69) -> 5.331551715 | G69: =OFFSET(Calculation!C$8,0,11*$B69) -> 1.33311437 | H69: =OFFSET(Calculation!D$8,0,11*$B69) -> 1 | I69: =OFFSET(Calculation!B$9,0,11*$B69) -> 3.160841169 | J69: =OFFSET(Calculation!C$9,0,11*$B69) -> 4.372666857 | K69: =OFFSET(Calculation!D$9,0,11*$B69) -> 1
B70: 15 | C70: =OFFSET(Calculation!B$7,0,11*$B70) -> 0.754934806 | D70: =OFFSET(Calculation!C$7,0,11*$B70) -> 1.053881946 | E70: =OFFSET(Calculation!D$7,0,11*$B70) -> 1 | F70: =OFFSET(Calculation!B$8,0,11*$B70) -> 5.331439974 | G70: =OFFSET(Calculation!C$8,0,11*$B70) -> 1.33299102 | H70: =OFFSET(Calculation!D$8,0,11*$B70) -> 1 | I70: =OFFSET(Calculation!B$9,0,11*$B70) -> 3.20494777 | J70: =OFFSET(Calculation!C$9,0,11*$B70) -> 4.400993322 | K70: =OFFSET(Calculation!D$9,0,11*$B70) -> 1
B71: 16 | C71: =OFFSET(Calculation!B$7,0,11*$B71) -> 0.7605334846 | D71: =OFFSET(Calculation!C$7,0,11*$B71) -> 1.077615038 | E71: =OFFSET(Calculation!D$7,0,11*$B71) -> 1 | F71: =OFFSET(Calculation!B$8,0,11*$B71) -> 5.331341413 | G71: =OFFSET(Calculation!C$8,0,11*$B71) -> 1.332941142 | H71: =OFFSET(Calculation!D$8,0,11*$B71) -> 1 | I71: =OFFSET(Calculation!B$9,0,11*$B71) -> 3.233344189 | J71: =OFFSET(Calculation!C$9,0,11*$B71) -> 4.419340544 | K71: =OFFSET(Calculation!D$9,0,11*$B71) -> 1
B72: 17 | C72: =OFFSET(Calculation!B$7,0,11*$B72) -> 0.7642273273 | D72: =OFFSET(Calculation!C$7,0,11*$B72) -> 1.092064427 | E72: =OFFSET(Calculation!D$7,0,11*$B72) -> 1 | F72: =OFFSET(Calculation!B$8,0,11*$B72) -> 5.331268429 | G72: =OFFSET(Calculation!C$8,0,11*$B72) -> 1.332925036 | H72: =OFFSET(Calculation!D$8,0,11*$B72) -> 1 | I72: =OFFSET(Calculation!B$9,0,11*$B72) -> 3.250739489 | J72: =OFFSET(Calculation!C$9,0,11*$B72) -> 4.43064765 | K72: =OFFSET(Calculation!D$9,0,11*$B72) -> 1
B73: 18 | C73: =OFFSET(Calculation!B$7,0,11*$B73) -> 0.7665510714 | D73: =OFFSET(Calculation!C$7,0,11*$B73) -> 1.100681773 | E73: =OFFSET(Calculation!D$7,0,11*$B73) -> 1 | F73: =OFFSET(Calculation!B$8,0,11*$B73) -> 5.33121986 | G73: =OFFSET(Calculation!C$8,0,11*$B73) -> 1.332921584 | H73: =OFFSET(Calculation!D$8,0,11*$B73) -> 1 | I73: =OFFSET(Calculation!B$9,0,11*$B73) -> 3.261109752 | J73: =OFFSET(Calculation!C$9,0,11*$B73) -> 4.437421109 | K73: =OFFSET(Calculation!D$9,0,11*$B73) -> 1
B74: 19 | C74: =OFFSET(Calculation!B$7,0,11*$B74) -> 0.7679656814 | D74: =OFFSET(Calculation!C$7,0,11*$B74) -> 1.105756402 | E74: =OFFSET(Calculation!D$7,0,11*$B74) -> 1 | F74: =OFFSET(Calculation!B$8,0,11*$B74) -> 5.331189465 | G74: =OFFSET(Calculation!C$8,0,11*$B74) -> 1.332921924 | H74: =OFFSET(Calculation!D$8,0,11*$B74) -> 1 | I74: =OFFSET(Calculation!B$9,0,11*$B74) -> 3.26720521 | J74: =OFFSET(Calculation!C$9,0,11*$B74) -> 4.441415983 | K74: =OFFSET(Calculation!D$9,0,11*$B74) -> 1
B75: =1+B74 -> 20 | C75: =OFFSET(Calculation!B$7,0,11*$B75) -> 0.7688091192 | D75: =OFFSET(Calculation!C$7,0,11*$B75) -> 1.108722336 | E75: =OFFSET(Calculation!D$7,0,11*$B75) -> 1 | F75: =OFFSET(Calculation!B$8,0,11*$B75) -> 5.331171087 | G75: =OFFSET(Calculation!C$8,0,11*$B75) -> 1.332922982 | H75: =OFFSET(Calculation!D$8,0,11*$B75) -> 1 | I75: =OFFSET(Calculation!B$9,0,11*$B75) -> 3.270761731 | J75: =OFFSET(Calculation!C$9,0,11*$B75) -> 4.443752009 | K75: =OFFSET(Calculation!D$9,0,11*$B75) -> 1

Sheet Calculation
A1: The underlying calculations for EM or "soft" clustering. To change the data or the initial clusters, or view the results, click the Animation worksheet tab at the bottom of this worksheet. | L1: In the next iteration, we recompute the cluster centers. To recompute the (x,y) center of the red cluster, just take (average x-coordinate of red points, average y-coordinate of red points). These are weighted averages; a point contributes to the average to the degree that it is red.
A3: This is the first iteration. The initial parameter table, below, is copied from the Animation worksheet.
A5: Cluster Centers and Variances | L5: Cluster Centers and Variances | W5: Cluster Centers and Variances | AH5: Cluster Centers and Variances | AS5: Cluster Centers and Variances | BD5: Cluster Centers and Variances | BO5: Cluster Centers and Variances | BZ5: Cluster Centers and Variances | CK5: Cluster Centers and Variances | CV5: Cluster Centers and Variances | DG5: Cluster Centers and Variances | DR5: Cluster Centers and Variances | EC5: Cluster Centers and Variances | EN5: Cluster Centers and Variances | EY5: Cluster Centers and Variances | FJ5: Cluster Centers and Variances | FU5: Cluster Centers and Variances | GF5: Cluster Centers and Variances | GQ5: Cluster Centers and Variances | HB5: Cluster Centers and Variances | HM5: Cluster Centers and Variances
B6: x | C6: y | D6: Variance | E6: Reestimate variance? | M6: x | N6: y | O6: Variance | P6: Reestimate variance? | X6: x | Y6: y | Z6: Variance | AA6: Reestimate variance? | AI6: x | AJ6: y | AK6: Variance | AL6: Reestimate variance? | AT6: x | AU6: y | AV6: Variance | AW6: Reestimate variance? | BE6: x | BF6: y | BG6: Variance | BH6: Reestimate variance? | BP6: x | BQ6: y | BR6: Variance | BS6: Reestimate variance? | CA6: x | CB6: y | CC6: Variance | CD6: Reestimate variance? | CL6: x | CM6: y | CN6: Variance | CO6: Reestimate variance? | CW6: x | CX6: y | CY6: Variance | CZ6: Reestimate variance? | DH6: x | DI6: y | DJ6: Variance | DK6: Reestimate variance? | DS6: x | DT6: y | DU6: Variance | DV6: Reestimate variance? | ED6: x | EE6: y | EF6: Variance | EG6: Reestimate variance? | EO6: x | EP6: y | EQ6: Variance | ER6: Reestimate variance? | EZ6: x | FA6: y | FB6: Variance | FC6: Reestimate variance? | FK6: x | FL6: y | FM6: Variance | FN6: Reestimate variance? | FV6: x | FW6: y | FX6: Variance | FY6: Reestimate variance? | GG6: x | GH6: y | GI6: Variance | GJ6: Reestimate variance? | GR6: x | GS6: y | GT6: Variance | GU6: Reestimate variance? | HC6: x | HD6: y | HE6: Variance | HF6: Reestimate variance? | HN6: x | HO6: y | HP6: Variance | HQ6: Reestimate variance?
A7: Red | B7: =Animation!C10 -> 2 | C7: =Animation!D10 -> 1 | D7: =Animation!E10 -> 1 | E7: =Animation!F10 -> FALSE | L7: Red | M7: =SUM(Animation!$N19:$N28*I17:I26)/I27 -> 2.50793127 | N7: =SUM(Animation!$O19:$O28*I17:I26)/I27 -> 0.8727534918 | O7: =IF(E7,SUM(B17:B26^2*I17:I26)/I27,D7) -> 1 | P7: =E7 -> FALSE | W7: Red | X7: =SUM(Animation!$N19:$N28*T17:T26)/T27 -> 2.104216639 | Y7: =SUM(Animation!$O19:$O28*T17:T26)/T27 -> 0.4253198336 | Z7: =IF(P7,SUM(M17:M26^2*T17:T26)/T27,O7) -> 1 | AA7: =P7 -> FALSE | AH7: Red | AI7: =SUM(Animation!$N19:$N28*AE17:AE26)/AE27 -> 1.786579471 | AJ7: =SUM(Animation!$O19:$O28*AE17:AE26)/AE27 -> 0.2605802367 | AK7: =IF(AA7,SUM(X17:X26^2*AE17:AE26)/AE27,Z7) -> 1 | AL7: =AA7 -> FALSE | AS7: Red | AT7: =SUM(Animation!$N19:$N28*AP17:AP26)/AP27 -> 1.457644341 | AU7: =SUM(Animation!$O19:$O28*AP17:AP26)/AP27 -> 0.2852898322 | AV7: =IF(AL7,SUM(AI17:AI26^2*AP17:AP26)/AP27,AK7) -> 1 | AW7: =AL7 -> FALSE | BD7: Red | BE7: =SUM(Animation!$N19:$N28*BA17:BA26)/BA27 -> 0.8817267043 | BF7: =SUM(Animation!$O19:$O28*BA17:BA26)/BA27 -> 0.3873679027 | BG7: =IF(AW7,SUM(AT17:AT26^2*BA17:BA26)/BA27,AV7) -> 1 | BH7: =AW7 -> FALSE | BO7: Red | BP7: =SUM(Animation!$N19:$N28*BL17:BL26)/BL27 -> 0.6584097443 | BQ7: =SUM(Animation!$O19:$O28*BL17:BL26)/BL27 -> 0.4648932381 | BR7: =IF(BH7,SUM(BE17:BE26^2*BL17:BL26)/BL27,BG7) -> 1 | BS7: =BH7 -> FALSE | BZ7: Red | CA7: =SUM(Animation!$N19:$N28*BW17:BW26)/BW27 -> 0.6585833111 | CB7: =SUM(Animation!$O19:$O28*BW17:BW26)/BW27 -> 0.4977056513 | CC7: =IF(BS7,SUM(BP17:BP26^2*BW17:BW26)/BW27,BR7) -> 1 | CD7: =BS7 -> FALSE | CK7: Red | CL7: =SUM(Animation!$N19:$N28*CH17:CH26)/CH27 -> 0.6652394584 | CM7: =SUM(Animation!$O19:$O28*CH17:CH26)/CH27 -> 0.5260878821 | CN7: =IF(CD7,SUM(CA17:CA26^2*CH17:CH26)/CH27,CC7) -> 1 | CO7: =CD7 -> FALSE | CV7: Red | CW7: =SUM(Animation!$N19:$N28*CS17:CS26)/CS27 -> 0.6726413095 | CX7: =SUM(Animation!$O19:$O28*CS17:CS26)/CS27 -> 0.5612275779 | CY7: =IF(CO7,SUM(CL17:CL26^2*CS17:CS26)/CS27,CN7) -> 1 | CZ7: =CO7 -> FALSE | DG7: Red | DH7: =SUM(Animation!$N19:$N28*DD17:DD26)/DD27 -> 0.6847132503 | DI7: =SUM(Animation!$O19:$O28*DD17:DD26)/DD27 -> 0.6306356129 | DJ7: =IF(CZ7,SUM(CW17:CW26^2*DD17:DD26)/DD27,CY7) -> 1 | DK7: =CZ7 -> FALSE | DR7: Red | DS7: =SUM(Animation!$N19:$N28*DO17:DO26)/DO27 -> 0.7047466841 | DT7: =SUM(Animation!$O19:$O28*DO17:DO26)/DO27 -> 0.7634532582 | DU7: =IF(DK7,SUM(DH17:DH26^2*DO17:DO26)/DO27,DJ7) -> 1 | DV7: =DK7 -> FALSE | EC7: Red | ED7: =SUM(Animation!$N19:$N28*DZ17:DZ26)/DZ27 -> 0.7222856606 | EE7: =SUM(Animation!$O19:$O28*DZ17:DZ26)/DZ27 -> 0.8764947272 | EF7: =IF(DV7,SUM(DS17:DS26^2*DZ17:DZ26)/DZ27,DU7) -> 1 | EG7: =DV7 -> FALSE | EN7: Red | EO7: =SUM(Animation!$N19:$N28*EK17:EK26)/EK27 -> 0.7361735096 | EP7: =SUM(Animation!$O19:$O28*EK17:EK26)/EK27 -> 0.9588274951 | EQ7: =IF(EG7,SUM(ED17:ED26^2*EK17:EK26)/EK27,EF7) -> 1 | ER7: =EG7 -> FALSE | EY7: Red | EZ7: =SUM(Animation!$N19:$N28*EV17:EV26)/EV27 -> 0.7469388875 | FA7: =SUM(Animation!$O19:$O28*EV17:EV26)/EV27 -> 1.016137435 | FB7: =IF(ER7,SUM(EO17:EO26^2*EV17:EV26)/EV27,EQ7) -> 1 | FC7: =ER7 -> FALSE | FJ7: Red | FK7: =SUM(Animation!$N19:$N28*FG17:FG26)/FG27 -> 0.754934806 | FL7: =SUM(Animation!$O19:$O28*FG17:FG26)/FG27 -> 1.053881946 | FM7: =IF(FC7,SUM(EZ17:EZ26^2*FG17:FG26)/FG27,FB7) -> 1 | FN7: =FC7 -> FALSE | FU7: Red | FV7: =SUM(Animation!$N19:$N28*FR17:FR26)/FR27 -> 0.7605334846 | FW7: =SUM(Animation!$O19:$O28*FR17:FR26)/FR27 -> 1.077615038 | FX7: =IF(FN7,SUM(FK17:FK26^2*FR17:FR26)/FR27,FM7) -> 1 | FY7: =FN7 -> FALSE | GF7: Red | GG7: =SUM(Animation!$N19:$N28*GC17:GC26)/GC27 -> 0.7642273273 | GH7: =SUM(Animation!$O19:$O28*GC17:GC26)/GC27 -> 1.092064427 | GI7: =IF(FY7,SUM(FV17:FV26^2*GC17:GC26)/GC27,FX7) -> 1 | GJ7: =FY7 -> FALSE | GQ7: Red | GR7: =SUM(Animation!$N19:$N28*GN17:GN26)/GN27 -> 0.7665510714 | GS7: =SUM(Animation!$O19:$O28*GN17:GN26)/GN27 -> 1.100681773 | GT7: =IF(GJ7,SUM(GG17:GG26^2*GN17:GN26)/GN27,GI7) -> 1 | GU7: =GJ7 -> FALSE | HB7: Red | HC7: =SUM(Animation!$N19:$N28*GY17:GY26)/GY27 -> 0.7679656814 | HD7: =SUM(Animation!$O19:$O28*GY17:GY26)/GY27 -> 1.105756402 | HE7: =IF(GU7,SUM(GR17:GR26^2*GY17:GY26)/GY27,GT7) -> 1 | HF7: =GU7 -> FALSE | HM7: Red | HN7: =SUM(Animation!$N19:$N28*HJ17:HJ26)/HJ27 -> 0.7688091192 | HO7: =SUM(Animation!$O19:$O28*HJ17:HJ26)/HJ27 -> 1.108722336 | HP7: =IF(HF7,SUM(HC17:HC26^2*HJ17:HJ26)/HJ27,HE7) -> 1 | HQ7: =HF7 -> FALSE
A8: Green | B8: =Animation!C11 -> 2 | C8: =Animation!D11 -> 2 | D8: =Animation!E11 -> 1 | L8: Green | M8: =SUM(Animation!$N19:$N28*J17:J26)/J27 -> 3.186913899 | N8: =SUM(Animation!$O19:$O28*J17:J26)/J27 -> 3.116311639 | O8: =IF(E7,SUM(C17:C26^2*J17:J26)/J27,D8) -> 1 | W8: Green | X8: =SUM(Animation!$N19:$N28*U17:U26)/U27 -> 4.441336817 | Y8: =SUM(Animation!$O19:$O28*U17:U26)/U27 -> 3.487747649 | Z8: =IF(P7,SUM(N17:N26^2*U17:U26)/U27,O8) -> 1 | AH8: Green | AI8: =SUM(Animation!$N19:$N28*AF17:AF26)/AF27 -> 4.878330199 | AJ8: =SUM(Animation!$O19:$O28*AF17:AF26)/AF27 -> 3.344803934 | AK8: =IF(AA7,SUM(Y17:Y26^2*AF17:AF26)/AF27,Z8) -> 1 | AS8: Green | AT8: =SUM(Animation!$N19:$N28*AQ17:AQ26)/AQ27 -> 5.03650291 | AU8: =SUM(Animation!$O19:$O28*AQ17:AQ26)/AQ27 -> 3.057297076 | AV8: =IF(AL7,SUM(AJ17:AJ26^2*AQ17:AQ26)/AQ27,AK8) -> 1 | BD8: Green | BE8: =SUM(Animation!$N19:$N28*BB17:BB26)/BB27 -> 5.131116187 | BF8: =SUM(Animation!$O19:$O28*BB17:BB26)/BB27 -> 2.681549318 | BG8: =IF(AW7,SUM(AU17:AU26^2*BB17:BB26)/BB27,AV8) -> 1 | BO8: Green | BP8: =SUM(Animation!$N19:$N28*BM17:BM26)/BM27 -> 5.191246229 | BQ8: =SUM(Animation!$O19:$O28*BM17:BM26)/BM27 -> 2.514660571 | BR8: =IF(BH7,SUM(BF17:BF26^2*BM17:BM26)/BM27,BG8) -> 1 | BZ8: Green | CA8: =SUM(Animation!$N19:$N28*BX17:BX26)/BX27 -> 5.219709944 | CB8: =SUM(Animation!$O19:$O28*BX17:BX26)/BX27 -> 2.424658762 | CC8: =IF(BS7,SUM(BQ17:BQ26^2*BX17:BX26)/BX27,BR8) -> 1 | CK8: Green | CL8: =SUM(Animation!$N19:$N28*CI17:CI26)/CI27 -> 5.238853197 | CM8: =SUM(Animation!$O19:$O28*CI17:CI26)/CI27 -> 2.287964488 | CN8: =IF(CD7,SUM(CB17:CB26^2*CI17:CI26)/CI27,CC8) -> 1 | CV8: Green | CW8: =SUM(Animation!$N19:$N28*CT17:CT26)/CT27 -> 5.269211472 | CX8: =SUM(Animation!$O19:$O28*CT17:CT26)/CT27 -> 1.967002128 | CY8: =IF(CO7,SUM(CM17:CM26^2*CT17:CT26)/CT27,CN8) -> 1 | DG8: Green | DH8: =SUM(Animation!$N19:$N28*DE17:DE26)/DE27 -> 5.316112673 | DI8: =SUM(Animation!$O19:$O28*DE17:DE26)/DE27 -> 1.442714153 | DJ8: =IF(CZ7,SUM(CX17:CX26^2*DE17:DE26)/DE27,CY8) -> 1 | DR8: Green | DS8: =SUM(Animation!$N19:$N28*DP17:DP26)/DP27 -> 5.33070796 | DT8: =SUM(Animation!$O19:$O28*DP17:DP26)/DP27 -> 1.337012848 | DU8: =IF(DK7,SUM(DI17:DI26^2*DP17:DP26)/DP27,DJ8) -> 1 | EC8: Green | ED8: =SUM(Animation!$N19:$N28*EA17:EA26)/EA27 -> 5.331670935 | EE8: =SUM(Animation!$O19:$O28*EA17:EA26)/EA27 -> 1.333861584 | EF8: =IF(DV7,SUM(DT17:DT26^2*EA17:EA26)/EA27,DU8) -> 1 | EN8: Green | EO8: =SUM(Animation!$N19:$N28*EL17:EL26)/EL27 -> 5.331647564 | EP8: =SUM(Animation!$O19:$O28*EL17:EL26)/EL27 -> 1.333367922 | EQ8: =IF(EG7,SUM(EE17:EE26^2*EL17:EL26)/EL27,EF8) -> 1 | EY8: Green | EZ8: =SUM(Animation!$N19:$N28*EW17:EW26)/EW27 -> 5.331551715 | FA8: =SUM(Animation!$O19:$O28*EW17:EW26)/EW27 -> 1.33311437 | FB8: =IF(ER7,SUM(EP17:EP26^2*EW17:EW26)/EW27,EQ8) -> 1 | FJ8: Green | FK8: =SUM(Animation!$N19:$N28*FH17:FH26)/FH27 -> 5.331439974 | FL8: =SUM(Animation!$O19:$O28*FH17:FH26)/FH27 -> 1.33299102 | FM8: =IF(FC7,SUM(FA17:FA26^2*FH17:FH26)/FH27,FB8) -> 1 | FU8: Green | FV8: =SUM(Animation!$N19:$N28*FS17:FS26)/FS27 -> 5.331341413 | FW8: =SUM(Animation!$O19:$O28*FS17:FS26)/FS27 -> 1.332941142 | FX8: =IF(FN7,SUM(FL17:FL26^2*FS17:FS26)/FS27,FM8) -> 1 | GF8: Green | GG8: =SUM(Animation!$N19:$N28*GD17:GD26)/GD27 -> 5.331268429 | GH8: =SUM(Animation!$O19:$O28*GD17:GD26)/GD27 -> 1.332925036 | GI8: =IF(FY7,SUM(FW17:FW26^2*GD17:GD26)/GD27,FX8) -> 1 | GQ8: Green | GR8: =SUM(Animation!$N19:$N28*GO17:GO26)/GO27 -> 5.33121986 | GS8: =SUM(Animation!$O19:$O28*GO17:GO26)/GO27 -> 1.332921584 | GT8: =IF(GJ7,SUM(GH17:GH26^2*GO17:GO26)/GO27,GI8) -> 1 | HB8: Green | HC8: =SUM(Animation!$N19:$N28*GZ17:GZ26)/GZ27 -> 5.331189465 | HD8: =SUM(Animation!$O19:$O28*GZ17:GZ26)/GZ27 -> 1.332921924 | HE8: =IF(GU7,SUM(GS17:GS26^2*GZ17:GZ26)/GZ27,GT8) -> 1 | HM8: Green | HN8: =SUM(Animation!$N19:$N28*HK17:HK26)/HK27 -> 5.331171087 | HO8: =SUM(Animation!$O19:$O28*HK17:HK26)/HK27 -> 1.332922982 | HP8: =IF(HF7,SUM(HD17:HD26^2*HK17:HK26)/HK27,HE8) -> 1
A9: Blue | B9: =Animation!C12 -> -1 | C9: =Animation!D12 -> 5 | D9: =Animation!E12 -> 1 | L9: Blue | M9: =SUM(Animation!$N19:$N28*K17:K26)/K27 -> 1.446199458 | N9: =SUM(Animation!$O19:$O28*K17:K26)/K27 -> 3.25971531 | O9: =IF(E7,SUM(D17:D26^2*K17:K26)/K27,D9) -> 1 | W9: Blue | X9: =SUM(Animation!$N19:$N28*V17:V26)/V27 -> 1.518156002 | Y9: =SUM(Animation!$O19:$O28*V17:V26)/V27 -> 2.900243491 | Z9: =IF(P7,SUM(O17:O26^2*V17:V26)/V27,O9) -> 1 | AH9: Blue | AI9: =SUM(Animation!$N19:$N28*AG17:AG26)/AG27 -> 1.5764906 | AJ9: =SUM(Animation!$O19:$O28*AG17:AG26)/AG27 -> 2.941607885 | AK9: =IF(AA7,SUM(Z17:Z26^2*AG17:AG26)/AG27,Z9) -> 1 | AS9: Blue | AT9: =SUM(Animation!$N19:$N28*AR17:AR26)/AR27 -> 1.715236608 | AU9: =SUM(Animation!$O19:$O28*AR17:AR26)/AR27 -> 3.086856633 | AV9: =IF(AL7,SUM(AK17:AK26^2*AR17:AR26)/AR27,AK9) -> 1 | BD9: Blue | BE9: =SUM(Animation!$N19:$N28*BC17:BC26)/BC27 -> 1.83605791 | BF9: =SUM(Animation!$O19:$O28*BC17:BC26)/BC27 -> 3.234096752 | BG9: =IF(AW7,SUM(AV17:AV26^2*BC17:BC26)/BC27,AV9) -> 1 | BO9: Blue | BP9: =SUM(Animation!$N19:$N28*BN17:BN26)/BN27 -> 1.945579129 | BQ9: =SUM(Animation!$O19:$O28*BN17:BN26)/BN27 -> 3.363582551 | BR9: =IF(BH7,SUM(BG17:BG26^2*BN17:BN26)/BN27,BG9) -> 1 | BZ9: Blue | CA9: =SUM(Animation!$N19:$N28*BY17:BY26)/BY27 -> 2.05828668 | CB9: =SUM(Animation!$O19:$O28*BY17:BY26)/BY27 -> 3.476342302 | CC9: =IF(BS7,SUM(BR17:BR26^2*BY17:BY26)/BY27,BR9) -> 1 | CK9: Blue | CL9: =SUM(Animation!$N19:$N28*CJ17:CJ26)/CJ27 -> 2.207238326 | CM9: =SUM(Animation!$O19:$O28*CJ17:CJ26)/CJ27 -> 3.615784808 | CN9: =IF(CD7,SUM(CC17:CC26^2*CJ17:CJ26)/CJ27,CC9) -> 1 | CV9: Blue | CW9: =SUM(Animation!$N19:$N28*CU17:CU26)/CU27 -> 2.469834959 | CX9: =SUM(Animation!$O19:$O28*CU17:CU26)/CU27 -> 3.849218198 | CY9: =IF(CO7,SUM(CN17:CN26^2*CU17:CU26)/CU27,CN9) -> 1 | DG9: Blue | DH9: =SUM(Animation!$N19:$N28*DF17:DF26)/DF27 -> 2.779571886 | DI9: =SUM(Animation!$O19:$O28*DF17:DF26)/DF27 -> 4.116100886 | DJ9: =IF(CZ7,SUM(CY17:CY26^2*DF17:DF26)/DF27,CY9) -> 1 | DR9: Blue | DS9: =SUM(Animation!$N19:$N28*DQ17:DQ26)/DQ27 -> 2.917573088 | DT9: =SUM(Animation!$O19:$O28*DQ17:DQ26)/DQ27 -> 4.217145198 | DU9: =IF(DK7,SUM(DJ17:DJ26^2*DQ17:DQ26)/DQ27,DJ9) -> 1 | EC9: Blue | ED9: =SUM(Animation!$N19:$N28*EB17:EB26)/EB27 -> 3.015615425 | EE9: =SUM(Animation!$O19:$O28*EB17:EB26)/EB27 -> 4.279849303 | EF9: =IF(DV7,SUM(DU17:DU26^2*EB17:EB26)/EB27,DU9) -> 1 | EN9: Blue | EO9: =SUM(Animation!$N19:$N28*EM17:EM26)/EM27 -> 3.097583957 | EP9: =SUM(Animation!$O19:$O28*EM17:EM26)/EM27 -> 4.332211682 | EQ9: =IF(EG7,SUM(EF17:EF26^2*EM17:EM26)/EM27,EF9) -> 1 | EY9: Blue | EZ9: =SUM(Animation!$N19:$N28*EX17:EX26)/EX27 -> 3.160841169 | FA9: =SUM(Animation!$O19:$O28*EX17:EX26)/EX27 -> 4.372666857 | FB9: =IF(ER7,SUM(EQ17:EQ26^2*EX17:EX26)/EX27,EQ9) -> 1 | FJ9: Blue | FK9: =SUM(Animation!$N19:$N28*FI17:FI26)/FI27 -> 3.20494777 | FL9: =SUM(Animation!$O19:$O28*FI17:FI26)/FI27 -> 4.400993322 | FM9: =IF(FC7,SUM(FB17:FB26^2*FI17:FI26)/FI27,FB9) -> 1 | FU9: Blue | FV9: =SUM(Animation!$N19:$N28*FT17:FT26)/FT27 -> 3.233344189 | FW9: =SUM(Animation!$O19:$O28*FT17:FT26)/FT27 -> 4.419340544 | FX9: =IF(FN7,SUM(FM17:FM26^2*FT17:FT26)/FT27,FM9) -> 1 | GF9: Blue | GG9: =SUM(Animation!$N19:$N28*GE17:GE26)/GE27 -> 3.250739489 | GH9: =SUM(Animation!$O19:$O28*GE17:GE26)/GE27 -> 4.43064765 | GI9: =IF(FY7,SUM(FX17:FX26^2*GE17:GE26)/GE27,FX9) -> 1 | GQ9: Blue | GR9: =SUM(Animation!$N19:$N28*GP17:GP26)/GP27 -> 3.261109752 | GS9: =SUM(Animation!$O19:$O28*GP17:GP26)/GP27 -> 4.437421109 | GT9: =IF(GJ7,SUM(GI17:GI26^2*GP17:GP26)/GP27,GI9) -> 1 | HB9: Blue | HC9: =SUM(Animation!$N19:$N28*HA17:HA26)/HA27 -> 3.26720521 | HD9: =SUM(Animation!$O19:$O28*HA17:HA26)/HA27 -> 4.441415983 | HE9: =IF(GU7,SUM(GT17:GT26^2*HA17:HA26)/HA27,GT9) -> 1 | HM9: Blue | HN9: =SUM(Animation!$N19:$N28*HL17:HL26)/HL27 -> 3.270761731 | HO9: =SUM(Animation!$O19:$O28*HL17:HL26)/HL27 -> 4.443752009 | HP9: =IF(HF7,SUM(HE17:HE26^2*HL17:HL26)/HL27,HE9) -> 1
A11: 0 | B11: ITERATIONS | L11: =A11+1 -> 1 | M11: ITERATION | W11: =L11+1 -> 2 | X11: ITERATIONS | AH11: =W11+1 -> 3 | AI11: ITERATIONS | AS11: =AH11+1 -> 4 | AT11: ITERATIONS | BD11: =AS11+1 -> 5 | BE11: ITERATIONS | BO11: =BD11+1 -> 6 | BP11: ITERATIONS | BZ11: =BO11+1 -> 7 | CA11: ITERATIONS | CK11: =BZ11+1 -> 8 | CL11: ITERATIONS | CV11: =CK11+1 -> 9 | CW11: ITERATIONS | DG11: =CV11+1 -> 10 | DH11: ITERATIONS | DR11: =DG11+1 -> 11 | DS11: ITERATIONS | EC11: =DR11+1 -> 12 | ED11: ITERATIONS | EN11: =EC11+1 -> 13 | EO11: ITERATIONS | EY11: =EN11+1 -> 14 | EZ11: ITERATIONS | FJ11: =EY11+1 -> 15 | FK11: ITERATIONS | FU11: =FJ11+1 -> 16 | FV11: ITERATIONS | GF11: =FU11+1 -> 17 | GG11: ITERATIONS | GQ11: =GF11+1 -> 18 | GR11: ITERATIONS | HB11: =GQ11+1 -> 19 | HC11: ITERATIONS | HM11: =HB11+1 -> 20 | HN11: ITERATIONS
E14: (assumes a Gaussian distribution - a normal bell curve) | I14: (assumes priors p(red)=p(green)=p(blue))
B15: Distances from centers | E15: Likelihoods | I15: Posterior probabilities | M15: Distances from centers | P15: Likelihoods | T15: Posterior probabilities | X15: Distances from centers | AA15: Likelihoods | AE15: Posterior probabilities | AI15: Distances from centers | AL15: Likelihoods | AP15: Posterior probabilities | AT15: Distances from centers | AW15: Likelihoods | BA15: Posterior probabilities | BE15: Distances from centers | BH15: Likelihoods | BL15: Posterior probabilities | BP15: Distances from centers | BS15: Likelihoods | BW15: Posterior probabilities | CA15: Distances from centers | CD15: Likelihoods | CH15: Posterior probabilities | CL15: Distances from centers | CO15: Likelihoods | CS15: Posterior probabilities | CW15: Distances from centers | CZ15: Likelihoods | DD15: Posterior probabilities | DH15: Distances from centers | DK15: Likelihoods | DO15: Posterior probabilities | DS15: Distances from centers | DV15: Likelihoods | DZ15: Posterior probabilities | ED15: Distances from centers | EG15: Likelihoods | EK15: Posterior probabilities | EO15: Distances from centers | ER15: Likelihoods | EV15: Posterior probabilities | EZ15: Distances from centers | FC15: Likelihoods | FG15: Posterior probabilities | FK15: Distances from centers | FN15: Likelihoods | FR15: Posterior probabilities | FV15: Distances from centers | FY15: Likelihoods | GC15: Posterior probabilities | GG15: Distances from centers | GJ15: Likelihoods | GN15: Posterior probabilities | GR15: Distances from centers | GU15: Likelihoods | GY15: Posterior probabilities | HC15: Distances from centers | HF15: Likelihoods | HJ15: Posterior probabilities | HN15: Distances from centers | HQ15: Likelihoods | HU15: Posterior probabilities
B16: d(red) | C16: d(green) | D16: d(blue) | E16: p(point|red) | F16: p(point|green) | G16: p(point|blue) | H16: total | I16: p(red|point) | J16: p(green|point) | K16: p(blue|point) | M16: d(red) | N16: d(green) | O16: d(blue) | P16: p(point|red) | Q16: p(point|green) | R16: p(point|blue) | S16: total | T16: p(red|point) | U16: p(green|point) | V16: p(blue|point) | X16: d(red) | Y16: d(green) | Z16: d(blue) | AA16: p(point|red) | AB16: p(point|green) | AC16: p(point|blue) | AD16: total | AE16: p(red|point) | AF16: p(green|point) | AG16: p(blue|point) | AI16: d(red) | AJ16: d(green) | AK16: d(blue) | AL16: p(point|red) | AM16: p(point|green) | AN16: p(point|blue) | AO16: total | AP16: p(red|point) | AQ16: p(green|point) | AR16: p(blue|point) | AT16: d(red) | AU16: d(green) | AV16: d(blue) | AW16: p(point|red) | AX16: p(point|green) | AY16: p(point|blue) | AZ16: total | BA16: p(red|point) | BB16: p(green|point) | BC16: p(blue|point) | BE16: d(red) | BF16: d(green) | BG16: d(blue) | BH16: p(point|red) | BI16: p(point|green) | BJ16: p(point|blue) | BK16: total | BL16: p(red|point) | BM16: p(green|point) | BN16: p(blue|point) | BP16: d(red) | BQ16: d(green) | BR16: d(blue) | BS16: p(point|red) | BT16: p(point|green) | BU16: p(point|blue) | BV16: total | BW16: p(red|point) | BX16: p(green|point) | BY16: p(blue|point) | CA16: d(red) | CB16: d(green) | CC16: d(blue) | CD16: p(point|red) | CE16: p(point|green) | CF16: p(point|blue) | CG16: total | CH16: p(red|point) | CI16: p(green|point) | CJ16: p(blue|point) | CL16: d(red) | CM16: d(green) | CN16: d(blue) | CO16: p(point|red) | CP16: p(point|green) | CQ16: p(point|blue) | CR16: total | CS16: p(red|point) | CT16: p(green|point) | CU16: p(blue|point) | CW16: d(red) | CX16: d(green) | CY16: d(blue) | CZ16: p(point|red) | DA16: p(point|green) | DB16: p(point|blue) | DC16: total | DD16: p(red|point) | DE16: p(green|point) | DF16: p(blue|point) | DH16: d(red) | DI16: d(green) | DJ16: d(blue) | DK16: p(point|red) | DL16: p(point|green) | DM16: p(point|blue) | DN16: total | DO16: p(red|point) | DP16: p(green|point) | DQ16: p(blue|point) | DS16: d(red) | DT16: d(green) | DU16: d(blue) | DV16: p(point|red) | DW16: p(point|green) | DX16: p(point|blue) | DY16: total | DZ16: p(red|point) | EA16: p(green|point) | EB16: p(blue|point) | ED16: d(red) | EE16: d(green) | EF16: d(blue) | EG16: p(point|red) | EH16: p(point|green) | EI16: p(point|blue) | EJ16: total | EK16: p(red|point) | EL16: p(green|point) | EM16: p(blue|point) | EO16: d(red) | EP16: d(green) | EQ16: d(blue) | ER16: p(point|red) | ES16: p(point|green) | ET16: p(point|blue) | EU16: total | EV16: p(red|point) | EW16: p(green|point) | EX16: p(blue|point) | EZ16: d(red) | FA16: d(green) | FB16: d(blue) | FC16: p(point|red) | FD16: p(point|green) | FE16: p(point|blue) | FF16: total | FG16: p(red|point) | FH16: p(green|point) | FI16: p(blue|point) | FK16: d(red) | FL16: d(green) | FM16: d(blue) | FN16: p(point|red) | FO16: p(point|green) | FP16: p(point|blue) | FQ16: total | FR16: p(red|point) | FS16: p(green|point) | FT16: p(blue|point) | FV16: d(red) | FW16: d(green) | FX16: d(blue) | FY16: p(point|red) | FZ16: p(point|green) | GA16: p(point|blue) | GB16: total | GC16: p(red|point) | GD16: p(green|point) | GE16: p(blue|point) | GG16: d(red) | GH16: d(green) | GI16: d(blue) | GJ16: p(point|red) | GK16: p(point|green) | GL16: p(point|blue) | GM16: total | GN16: p(red|point) | GO16: p(green|point) | GP16: p(blue|point) | GR16: d(red) | GS16: d(green) | GT16: d(blue) | GU16: p(point|red) | GV16: p(point|green) | GW16: p(point|blue) | GX16: total | GY16: p(red|point) | GZ16: p(green|point) | HA16: p(blue|point) | HC16: d(red) | HD16: d(green) | HE16: d(blue) | HF16: p(point|red) | HG16: p(point|green) | HH16: p(point|blue) | HI16: total | HJ16: p(red|point) | HK16: p(green|point) | HL16: p(blue|point) | HN16: d(red) | HO16: d(green) | HP16: d(blue) | HQ16: p(point|red) | HR16: p(point|green) | HS16: p(point|blue) | HT16: total | HU16: p(red|point) | HV16: p(green|point) | HW16: p(blue|point)
B17: =SQRT((Animation!$N19-B$7)^2+(Animation!$O19-C$7)^2) -> 3.16227766 | C17: =SQRT((Animation!$N19-B$8)^2+(Animation!$O19-C$8)^2) -> 2.236067977 | D17: =SQRT((Animation!$N19-B$9)^2+(Animation!$O19-C$9)^2) -> 4.123105626 | E17: =NORMDIST(B17,0,SQRT(D$7),FALSE) -> 0.002688051941 | F17: =NORMDIST(C17,0,SQRT(D$8),FALSE) -> 0.03274717654 | G17: =NORMDIST(D17,0,SQRT(D$9),FALSE) -> 8.117213512e-05 | H17: =SUM(E17:G17) -> 0.03551640061 | I17: =E17/H17 -> 0.07568480743 | J17: =F17/H17 -> 0.9220297094 | K17: =G17/H17 -> 0.002285483149 | M17: =SQRT((Animation!$N19-M$7)^2+(Animation!$O19-N$7)^2) -> 3.165723039 | N17: =SQRT((Animation!$N19-M$8)^2+(Animation!$O19-N$8)^2) -> 0.903239683 | O17: =SQRT((Animation!$N19-M$9)^2+(Animation!$O19-N$9)^2) -> 1.721138445 | P17: =NORMDIST(M17,0,SQRT(O$7),FALSE) -> 0.002658908146 | Q17: =NORMDIST(N17,0,SQRT(O$8),FALSE) -> 0.2653091589 | R17: =NORMDIST(O17,0,SQRT(O$9),FALSE) -> 0.09070912628 | S17: =SUM(P17:R17) -> 0.3586771933 | T17: =P17/S17 -> 0.007413095104 | U17: =Q17/S17 -> 0.7396878414 | V17: =R17/S17 -> 0.2528990635 | X17: =SQRT((Animation!$N19-X$7)^2+(Animation!$O19-Y$7)^2) -> 3.685209101 | Y17: =SQRT((Animation!$N19-X$8)^2+(Animation!$O19-Y$8)^2) -> 1.529658227 | Z17: =SQRT((Animation!$N19-X$9)^2+(Animation!$O19-Y$9)^2) -> 1.845352544 | AA17: =NORMDIST(X17,0,SQRT(Z$7),FALSE) -> 0.0004486257243 | AB17: =NORMDIST(Y17,0,SQRT(Z$8),FALSE) -> 0.1238275163 | AC17: =NORMDIST(Z17,0,SQRT(Z$9),FALSE) -> 0.07268635947 | AD17: =SUM(AA17:AC17) -> 0.1969625015 | AE17: =AA17/AD17 -> 0.0022777215 | AF17: =AB17/AD17 -> 0.6286857415 | AG17: =AC17/AD17 -> 0.369036537 | AI17: =SQRT((Animation!$N19-AI$7)^2+(Animation!$O19-AJ$7)^2) -> 3.931367389 | AJ17: =SQRT((Animation!$N19-AI$8)^2+(Animation!$O19-AJ$8)^2) -> 1.989323057 | AK17: =SQRT((Animation!$N19-AI$9)^2+(Animation!$O19-AJ$9)^2) -> 1.773858191 | AL17: =NORMDIST(AI17,0,SQRT(AK$7),FALSE) -> 0.0001756945984 | AM17: =NORMDIST(AJ17,0,SQRT(AK$8),FALSE) -> 0.05515313748 | AN17: =NORMDIST(AK17,0,SQRT(AK$9),FALSE) -> 0.08272569912 | AO17: =SUM(AL17:AN17) -> 0.1380545312 | AP17: =AL17/AO17 -> 0.001272646373 | AQ17: =AM17/AO17 -> 0.3995025517 | AR17: =AN17/AO17 -> 0.599224802 | AT17: =SQRT((Animation!$N19-AT$7)^2+(Animation!$O19-AU$7)^2) -> 4.022180082 | AU17: =SQRT((Animation!$N19-AT$8)^2+(Animation!$O19-AU$8)^2) -> 2.244110715 | AV17: =SQRT((Animation!$N19-AT$9)^2+(Animation!$O19-AU$9)^2) -> 1.576213114 | AW17: =NORMDIST(AT17,0,SQRT(AV$7),FALSE) -> 0.0001224381152 | AX17: =NORMDIST(AU17,0,SQRT(AV$8),FALSE) -> 0.03216247159 | AY17: =NORMDIST(AV17,0,SQRT(AV$9),FALSE) -> 0.1151911422 | AZ17: =SUM(AW17:AY17) -> 0.1474760519 | BA17: =AW17/AZ17 -> 0.0008302237112 | BB17: =AX17/AZ17 -> 0.2180860632 | BC17: =AY17/AZ17 -> 0.7810837131 | BE17: =SQRT((Animation!$N19-BE$7)^2+(Animation!$O19-BF$7)^2) -> 4.187862513 | BF17: =SQRT((Animation!$N19-BE$8)^2+(Animation!$O19-BF$8)^2) -> 2.505986513 | BG17: =SQRT((Animation!$N19-BE$9)^2+(Animation!$O19-BF$9)^2) -> 1.393330174 | BH17: =NORMDIST(BE17,0,SQRT(BG$7),FALSE) -> 6.202117207e-05 | BI17: =NORMDIST(BF17,0,SQRT(BG$8),FALSE) -> 0.01726761088 | BJ17: =NORMDIST(BG17,0,SQRT(BG$9),FALSE) -> 0.1511287707 | BK17: =SUM(BH17:BJ17) -> 0.1684584027 | BL17: =BH17/BK17 -> 0.0003681690617 | BM17: =BI17/BK17 -> 0.1025037078 | BN17: =BJ17/BK17 -> 0.8971281232 | BP17: =SQRT((Animation!$N19-BP$7)^2+(Animation!$O19-BQ$7)^2) -> 4.240285927 | BQ17: =SQRT((Animation!$N19-BP$8)^2+(Animation!$O19-BQ$8)^2) -> 2.647223688 | BR17: =SQRT((Animation!$N19-BP$9)^2+(Animation!$O19-BQ$9)^2) -> 1.231596745 | BS17: =NORMDIST(BP17,0,SQRT(BR$7),FALSE) -> 4.972757722e-05 | BT17: =NORMDIST(BQ17,0,SQRT(BR$8),FALSE) -> 0.01200016162 | BU17: =NORMDIST(BR17,0,SQRT(BR$9),FALSE) -> 0.1868678111 | BV17: =SUM(BS17:BU17) -> 0.1989177003 | BW17: =BS17/BV17 -> 0.0002499907105 | BX17: =BT17/BV17 -> 0.06032726904 | BY17: =BU17/BV17 -> 0.9394227402 | CA17: =SQRT((Animation!$N19-CA$7)^2+(Animation!$O19-CB$7)^2) -> 4.21287287 | CB17: =SQRT((Animation!$N19-CA$8)^2+(Animation!$O19-CB$8)^2) -> 2.721913344 | CC17: =SQRT((Animation!$N19-CA$9)^2+(Animation!$O19-CB$9)^2) -> 1.077516293 | CD17: =NORMDIST(CA17,0,SQRT(CC$7),FALSE) -> 5.583623976e-05 | CE17: =NORMDIST(CB17,0,SQRT(CC$8),FALSE) -> 0.009819896872 | CF17: =NORMDIST(CC17,0,SQRT(CC$9),FALSE) -> 0.2232508585 | CG17: =SUM(CD17:CF17) -> 0.2331265916 | CH17: =CD17/CG17 -> 0.0002395103852 | CI17: =CE17/CG17 -> 0.04212259444 | CJ17: =CF17/CG17 -> 0.9576378952 | CL17: =SQRT((Animation!$N19-CL$7)^2+(Animation!$O19-CM$7)^2) -> 4.18559102 | CM17: =SQRT((Animation!$N19-CL$8)^2+(Animation!$O19-CM$8)^2) -> 2.81842673 | CN17: =SQRT((Animation!$N19-CL$9)^2+(Animation!$O19-CM$9)^2) -> 0.880961058 | CO17: =NORMDIST(CL17,0,SQRT(CN$7),FALSE) -> 6.261381434e-05 | CP17: =NORMDIST(CM17,0,SQRT(CN$8),FALSE) -> 0.007516135657 | CQ17: =NORMDIST(CN17,0,SQRT(CN$9),FALSE) -> 0.2706348656 | CR17: =SUM(CO17:CQ17) -> 0.2782136151 | CS17: =CO17/CR17 -> 0.0002250566146 | CT17: =CP17/CR17 -> 0.02701570035 | CU17: =CQ17/CR17 -> 0.972759243 | CW17: =SQRT((Animation!$N19-CW$7)^2+(Animation!$O19-CX$7)^2) -> 4.152319141 | CX17: =SQRT((Animation!$N19-CW$8)^2+(Animation!$O19-CX$8)^2) -> 3.046703309 | CY17: =SQRT((Animation!$N19-CW$9)^2+(Animation!$O19-CX$9)^2) -> 0.5511897341 | CZ17: =NORMDIST(CW17,0,SQRT(CY$7),FALSE) -> 7.193010632e-05 | DA17: =NORMDIST(CX17,0,SQRT(CY$8),FALSE) -> 0.003848241223 | DB17: =NORMDIST(CY17,0,SQRT(CY$9),FALSE) -> 0.3427192793 | DC17: =SUM(CZ17:DB17) -> 0.3466394506 | DD17: =CZ17/DC17 -> 0.0002075069822 | DE17: =DA17/DC17 -> 0.0111015674 | DF17: =DB17/DC17 -> 0.9886909256 | DH17: =SQRT((Animation!$N19-DH$7)^2+(Animation!$O19-DI$7)^2) -> 4.0881743 | DI17: =SQRT((Animation!$N19-DH$8)^2+(Animation!$O19-DI$8)^2) -> 3.450230255 | DJ17: =SQRT((Animation!$N19-DH$9)^2+(Animation!$O19-DI$9)^2) -> 0.2491344404 | DK17: =NORMDIST(DH17,0,SQRT(DJ$7),FALSE) -> 9.368962634e-05 | DL17: =NORMDIST(DI17,0,SQRT(DJ$8),FALSE) -> 0.001037456805 | DM17: =NORMDIST(DJ17,0,SQRT(DJ$9),FALSE) -> 0.3867516521 | DN17: =SUM(DK17:DM17) -> 0.3878827985 | DO17: =DK17/DN17 -> 0.0002415410704 | DP17: =DL17/DN17 -> 0.00267466567 | DQ17: =DM17/DN17 -> 0.9970837933 | DS17: =SQRT((Animation!$N19-DS$7)^2+(Animation!$O19-DT$7)^2) -> 3.967798205 | DT17: =SQRT((Animation!$N19-DS$8)^2+(Animation!$O19-DT$8)^2) -> 3.538884028 | DU17: =SQRT((Animation!$N19-DS$9)^2+(Animation!$O19-DT$9)^2) -> 0.2322632837 | DV17: =NORMDIST(DS17,0,SQRT(DU$7),FALSE) -> 0.0001521490644 | DW17: =NORMDIST(DT17,0,SQRT(DU$8),FALSE) -> 0.0007610674155 | DX17: =NORMDIST(DU17,0,SQRT(DU$9),FALSE) -> 0.3883253928 | DY17: =SUM(DV17:DX17) -> 0.3892386092 | DZ17: =DV17/DY17 -> 0.0003908889322 | EA17: =DW17/DY17 -> 0.001955272158 | EB17: =DX17/DY17 -> 0.9976538389 | ED17: =SQRT((Animation!$N19-ED$7)^2+(Animation!$O19-EE$7)^2) -> 3.865781655 | EE17: =SQRT((Animation!$N19-ED$8)^2+(Animation!$O19-EE$8)^2) -> 3.541889807 | EF17: =SQRT((Animation!$N19-ED$9)^2+(Animation!$O19-EE$9)^2) -> 0.2802846298 | EG17: =NORMDIST(ED17,0,SQRT(EF$7),FALSE) -> 0.0002268838299 | EH17: =NORMDIST(EE17,0,SQRT(EF$8),FALSE) -> 0.0007530113668 | EI17: =NORMDIST(EF17,0,SQRT(EF$9),FALSE) -> 0.3835757058 | EJ17: =SUM(EG17:EI17) -> 0.384555601 | EK17: =EG17/EJ17 -> 0.0005899896643 | EL17: =EH17/EJ17 -> 0.001958133921 | EM17: =EI17/EJ17 -> 0.9974518764 | EO17: =SQRT((Animation!$N19-EO$7)^2+(Animation!$O19-EP$7)^2) -> 3.791258443 | EP17: =SQRT((Animation!$N19-EO$8)^2+(Animation!$O19-EP$8)^2) -> 3.542246039 | EQ17: =SQRT((Animation!$N19-EO$9)^2+(Animation!$O19-EP$9)^2) -> 0.3462473538 | ER17: =NORMDIST(EO17,0,SQRT(EQ$7),FALSE) -> 0.000301796133 | ES17: =NORMDIST(EP17,0,SQRT(EQ$8),FALSE) -> 0.0007520618174 | ET17: =NORMDIST(EQ17,0,SQRT(EQ$9),FALSE) -> 0.3757308756 | EU17: =SUM(ER17:ET17) -> 0.3767847336 | EV17: =ER17/EU17 -> 0.0008009776037 | EW17: =ES17/EU17 -> 0.001995998644 | EX17: =ET17/EU17 -> 0.9972030238 | EZ17: =SQRT((Animation!$N19-EZ$7)^2+(Animation!$O19-FA$7)^2) -> 3.7389464 | FA17: =SQRT((Animation!$N19-EZ$8)^2+(Animation!$O19-FA$8)^2) -> 3.542373832 | FB17: =SQRT((Animation!$N19-EZ$9)^2+(Animation!$O19-FA$9)^2) -> 0.4058946515 | FC17: =NORMDIST(EZ17,0,SQRT(FB$7),FALSE) -> 0.0003674958156 | FD17: =NORMDIST(FA17,0,SQRT(FB$8),FALSE) -> 0.0007517214497 | FE17: =NORMDIST(FB17,0,SQRT(FB$9),FALSE) -> 0.3673964505 | FF17: =SUM(FC17:FE17) -> 0.3685156678 | FG17: =FC17/FF17 -> 0.0009972325406 | FH17: =FD17/FF17 -> 0.00203986293 | FI17: =FE17/FF17 -> 0.9969629045 | FK17: =SQRT((Animation!$N19-FK$7)^2+(Animation!$O19-FL$7)^2) -> 3.704042294 | FL17: =SQRT((Animation!$N19-FK$8)^2+(Animation!$O19-FL$8)^2) -> 3.542393153 | FM17: =SQRT((Animation!$N19-FK$9)^2+(Animation!$O19-FL$9)^2) -> 0.450332358 | FN17: =NORMDIST(FK17,0,SQRT(FM$7),FALSE) -> 0.0004184709056 | FO17: =NORMDIST(FL17,0,SQRT(FM$8),FALSE) -> 0.0007516700004 | FP17: =NORMDIST(FM17,0,SQRT(FM$9),FALSE) -> 0.3604730258 | FQ17: =SUM(FN17:FP17) -> 0.3616431667 | FR17: =FN17/FQ17 -> 0.001157137599 | FS17: =FO17/FQ17 -> 0.002078485285 | FT17: =FP17/FQ17 -> 0.9967643771 | FV17: =SQRT((Animation!$N19-FV$7)^2+(Animation!$O19-FW$7)^2) -> 3.681785455 | FW17: =SQRT((Animation!$N19-FV$8)^2+(Animation!$O19-FW$8)^2) -> 3.542365839 | FX17: =SQRT((Animation!$N19-FV$9)^2+(Animation!$O19-FW$9)^2) -> 0.4798916573 | FY17: =NORMDIST(FV17,0,SQRT(FX$7),FALSE) -> 0.0004543191639 | FZ17: =NORMDIST(FW17,0,SQRT(FX$8),FALSE) -> 0.0007517427338 | GA17: =NORMDIST(FX17,0,SQRT(FX$9),FALSE) -> 0.3555510162 | GB17: =SUM(FY17:GA17) -> 0.3567570781 | GC17: =FY17/GB17 -> 0.001273469237 | GD17: =FZ17/GB17 -> 0.002107155765 | GE17: =GA17/GB17 -> 0.996619375 | GG17: =SQRT((Animation!$N19-GG$7)^2+(Animation!$O19-GH$7)^2) -> 3.668074255 | GH17: =SQRT((Animation!$N19-GG$8)^2+(Animation!$O19-GH$8)^2) -> 3.542329933 | GI17: =SQRT((Animation!$N19-GG$9)^2+(Animation!$O19-GH$9)^2) -> 0.4983248839 | GJ17: =NORMDIST(GG17,0,SQRT(GI$7),FALSE) -> 0.0004777978116 | GK17: =NORMDIST(GH17,0,SQRT(GI$8),FALSE) -> 0.0007518383552 | GL17: =NORMDIST(GI17,0,SQRT(GI$9),FALSE) -> 0.3523598311 | GM17: =SUM(GJ17:GL17) -> 0.3535894672 | GN17: =GJ17/GM17 -> 0.001351278406 | GO17: =GK17/GM17 -> 0.002126303029 | GP17: =GL17/GM17 -> 0.9965224186 | GR17: =SQRT((Animation!$N19-GR$7)^2+(Animation!$O19-GS$7)^2) -> 3.659827906 | GS17: =SQRT((Animation!$N19-GR$8)^2+(Animation!$O19-GS$8)^2) -> 3.542300568 | GT17: =SQRT((Animation!$N19-GR$9)^2+(Animation!$O19-GS$9)^2) -> 0.5094266674 | GU17: =NORMDIST(GR17,0,SQRT(GT$7),FALSE) -> 0.0004924544038 | GV17: =NORMDIST(GS17,0,SQRT(GT$8),FALSE) -> 0.000751916565 | GW17: =NORMDIST(GT17,0,SQRT(GT$9),FALSE) -> 0.3503942612 | GX17: =SUM(GU17:GW17) -> 0.3516386322 | GY17: =GU17/GX17 -> 0.001400455919 | GZ17: =GV17/GX17 -> 0.002138321834 | HA17: =GW17/GX17 -> 0.9964612222 | HC17: =SQRT((Animation!$N19-HC$7)^2+(Animation!$O19-HD$7)^2) -> 3.654945034 | HD17: =SQRT((Animation!$N19-HC$8)^2+(Animation!$O19-HD$8)^2) -> 3.542280309 | HE17: =SQRT((Animation!$N19-HC$9)^2+(Animation!$O19-HD$9)^2) -> 0.515990983 | HF17: =NORMDIST(HC17,0,SQRT(HE$7),FALSE) -> 0.0005013279225 | HG17: =NORMDIST(HD17,0,SQRT(HE$8),FALSE) -> 0.0007519705281 | HH17: =NORMDIST(HE17,0,SQRT(HE$9),FALSE) -> 0.3492169626 | HI17: =SUM(HF17:HH17) -> 0.3504702611 | HJ17: =HF17/HI17 -> 0.001430443545 | HK17: =HG17/HI17 -> 0.002145604383 | HL17: =HH17/HI17 -> 0.9964239521 | HN17: =SQRT((Animation!$N19-HN$7)^2+(Animation!$O19-HO$7)^2) -> 3.652081499 | HO17: =SQRT((Animation!$N19-HN$8)^2+(Animation!$O19-HO$8)^2) -> 3.542267418 | HP17: =SQRT((Animation!$N19-HN$9)^2+(Animation!$O19-HO$9)^2) -> 0.5198343589 | HQ17: =NORMDIST(HN17,0,SQRT(HP$7),FALSE) -> 0.0005066003291 | HR17: =NORMDIST(HO17,0,SQRT(HP$8),FALSE) -> 0.0007520048665 | HS17: =NORMDIST(HP17,0,SQRT(HP$9),FALSE) -> 0.3485225261 | HT17: =SUM(HQ17:HS17) -> 0.3497811313 | HU17: =HQ17/HT17 -> 0.001448335212 | HV17: =HR17/HT17 -> 0.002149929768 | HW17: =HS17/HT17 -> 0.996401735
B18: =SQRT((Animation!$N20-B$7)^2+(Animation!$O20-C$7)^2) -> 3.16227766 | C18: =SQRT((Animation!$N20-B$8)^2+(Animation!$O20-C$8)^2) -> 3 | D18: =SQRT((Animation!$N20-B$9)^2+(Animation!$O20-C$9)^2) -> 6.708203932 | E18: 0.002688051941 | F18: 0.004431848412 | G18: 6.749696155e-11 | H18: 0.00711990042 | I18: 0.3775406652 | J18: 0.6224593253 | K18: 9.480042916e-09 | M18: =SQRT((Animation!$N20-M$7)^2+(Animation!$O20-N$7)^2) -> 2.735158358 | N18: =SQRT((Animation!$N20-M$8)^2+(Animation!$O20-N$8)^2) -> 2.129185967 | O18: =SQRT((Animation!$N20-M$9)^2+(Animation!$O20-N$9)^2) -> 3.770461637 | P18: 0.009471346892 | Q18: 0.04135115295 | R18: 0.0003264841973 | S18: 0.05114898404 | T18: 0.1851717501 | U18: 0.8084452454 | V18: 0.006383004539 | X18: =SQRT((Animation!$N20-X$7)^2+(Animation!$O20-Y$7)^2) -> 3.296237082 | Y18: =SQRT((Animation!$N20-X$8)^2+(Animation!$O20-Y$8)^2) -> 1.58918143 | Z18: =SQRT((Animation!$N20-X$9)^2+(Animation!$O20-Y$9)^2) -> 3.596342026 | AA18: 0.001744080175 | AB18: 0.1128509517 | AC18: 0.0006200090293 | AD18: 0.1152150409 | AE18: 0.01513760844 | AF18: 0.9794810713 | AG18: 0.005381320221 | AI18: =SQRT((Animation!$N20-AI$7)^2+(Animation!$O20-AJ$7)^2) -> 3.653991326 | AJ18: =SQRT((Animation!$N20-AI$8)^2+(Animation!$O20-AJ$8)^2) -> 1.350296694 | AK18: =SQRT((Animation!$N20-AI$9)^2+(Animation!$O20-AJ$9)^2) -> 3.550639664 | AL18: 0.0005030782473 | AM18: 0.1603190938 | AN18: 0.0007300047296 | AO18: 0.1615521768 | AP18: 0.003114029519 | AQ18: 0.9923672772 | AR18: 0.004518693243 | AT18: =SQRT((Animation!$N20-AT$7)^2+(Animation!$O20-AU$7)^2) -> 3.935545016 | AU18: =SQRT((Animation!$N20-AT$8)^2+(Animation!$O20-AU$8)^2) -> 1.057927016 | AV18: =SQRT((Animation!$N20-AT$9)^2+(Animation!$O20-AU$9)^2) -> 3.459902872 | AW18: 0.0001728310862 | AX18: 0.2279695257 | AY18: 0.001003358432 | AZ18: 0.2291457152 | BA18: 0.0007542409689 | BB18: 0.9948670674 | BC18: 0.004378691662 | BE18: =SQRT((Animation!$N20-BE$7)^2+(Animation!$O20-BF$7)^2) -> 4.422754483 | BF18: =SQRT((Animation!$N20-BE$8)^2+(Animation!$O20-BF$8)^2) -> 0.694046776 | BG18: =SQRT((Animation!$N20-BE$9)^2+(Animation!$O20-BF$9)^2) -> 3.396104289 | BH18: 2.256033814e-05 | BI18: 0.3135523344 | BJ18: 0.001248639521 | BK18: 0.3148235343 | BL18: 7.166026578e-05 | BM18: 0.9959621829 | BN18: 0.003966156864 | BP18: =SQRT((Animation!$N20-BP$7)^2+(Animation!$O20-BQ$7)^2) -> 4.604992803 | BQ18: =SQRT((Animation!$N20-BP$8)^2+(Animation!$O20-BQ$8)^2) -> 0.5490451928 | BR18: =SQRT((Animation!$N20-BP$9)^2+(Animation!$O20-BQ$9)^2) -> 3.344972979 | BS18: 9.910478832e-06 | BT18: 0.3431238408 | BU18: 0.001483485861 | BV18: 0.3446172372 | BW18: 2.87579313e-05 | BX18: 0.9956665071 | BY18: 0.004304734939 | CA18: =SQRT((Animation!$N20-CA$7)^2+(Animation!$O20-CB$7)^2) -> 4.593994686 | CB18: =SQRT((Animation!$N20-CA$8)^2+(Animation!$O20-CB$8)^2) -> 0.4781291914 | CC18: =SQRT((Animation!$N20-CA$9)^2+(Animation!$O20-CB$9)^2) -> 3.291392387 | CD18: 1.042470465e-05 | CE18: 0.3558513132 | CF18: 0.001772134625 | CG18: 0.3576338725 | CH18: 2.914909758e-05 | CI18: 0.9950156865 | CJ18: 0.004955164376 | CL18: =SQRT((Animation!$N20-CL$7)^2+(Animation!$O20-CM$7)^2) -> 4.578489476 | CM18: =SQRT((Animation!$N20-CL$8)^2+(Animation!$O20-CM$8)^2) -> 0.3741315227 | CN18: =SQRT((Animation!$N20-CL$9)^2+(Animation!$O20-CM$9)^2) -> 3.226496291 | CO18: 1.119300559e-05 | CP18: 0.3719760787 | CQ18: 0.002189509591 | CR18: 0.3741767813 | CS18: 2.991368293e-05 | CT18: 0.9941185485 | CU18: 0.00585153783 | CW18: =SQRT((Animation!$N20-CW$7)^2+(Animation!$O20-CX$7)^2) -> 4.56027404 | CX18: =SQRT((Animation!$N20-CW$8)^2+(Animation!$O20-CX$8)^2) -> 0.2712262455 | CY18: =SQRT((Animation!$N20-CW$9)^2+(Animation!$O20-CX$9)^2) -> 3.133902213 | CZ18: 1.216450598e-05 | DA18: 0.3845350367 | DB18: 0.002939222839 | DC18: 0.3874864241 | DD18: 3.139337334e-05 | DE18: 0.9923832497 | DF18: 0.007585356949 | DH18: =SQRT((Animation!$N20-DH$7)^2+(Animation!$O20-DI$7)^2) -> 4.527345641 | DI18: =SQRT((Animation!$N20-DH$8)^2+(Animation!$O20-DI$8)^2) -> 0.6406986318 | DJ18: =SQRT((Animation!$N20-DH$9)^2+(Animation!$O20-DI$9)^2) -> 3.067276312 | DK18: 1.41277754e-05 | DL18: 0.324916874 | DM18: 0.003613673192 | DN18: 0.328544675 | DO18: 4.300107863e-05 | DP18: 0.9889579675 | DQ18: 0.01099903139 | DS18: =SQRT((Animation!$N20-DS$7)^2+(Animation!$O20-DT$7)^2) -> 4.469703446 | DT18: =SQRT((Animation!$N20-DS$8)^2+(Animation!$O20-DT$8)^2) -> 0.740891165 | DU18: =SQRT((Animation!$N20-DS$9)^2+(Animation!$O20-DT$9)^2) -> 3.041748621 | DV18: 1.831000403e-05 | DW18: 0.3031891556 | DX18: 0.003906724929 | DY18: 0.3071141905 | DZ18: 5.961953108e-05 | EA18: 0.9872196237 | EB18: 0.0127207568 | ED18: =SQRT((Animation!$N20-ED$7)^2+(Animation!$O20-EE$7)^2) -> 4.422793695 | EE18: =SQRT((Animation!$N20-ED$8)^2+(Animation!$O20-EE$8)^2) -> 0.7441411146 | EF18: =SQRT((Animation!$N20-ED$9)^2+(Animation!$O20-EE$9)^2) -> 3.022498136 | EG18: 2.255642597e-05 | EH18: 0.3024583998 | EI18: 0.004141546439 | EJ18: 0.3066225026 | EK18: 7.356415717e-05 | EL18: 0.9864194479 | EM18: 0.01350698792 | EO18: =SQRT((Animation!$N20-EO$7)^2+(Animation!$O20-EP$7)^2) -> 4.389106575 | EP18: =SQRT((Animation!$N20-EO$8)^2+(Animation!$O20-EP$8)^2) -> 0.7445726517 | EQ18: =SQRT((Animation!$N20-EO$9)^2+(Animation!$O20-EP$9)^2) -> 3.009717284 | ER18: 2.616555267e-05 | ES18: 0.3023612604 | ET18: 0.004304313593 | EU18: 0.3066917396 | EV18: 8.531547903e-05 | EW18: 0.9858800268 | EX18: 0.01403465773 | EZ18: =SQRT((Animation!$N20-EZ$7)^2+(Animation!$O20-FA$7)^2) -> 4.365376773 | FA18: =SQRT((Animation!$N20-EZ$8)^2+(Animation!$O20-FA$8)^2) -> 0.7447569962 | FB18: =SQRT((Animation!$N20-EZ$9)^2+(Animation!$O20-FA$9)^2) -> 3.002008198 | FC18: 2.902956629e-05 | FD18: 0.3023197566 | FE18: 0.004405219708 | FF18: 0.3067540059 | FG18: 9.463467706e-05 | FH18: 0.9855446084 | FI18: 0.0143607569 | FK18: =SQRT((Animation!$N20-FK$7)^2+(Animation!$O20-FL$7)^2) -> 4.349220375 | FL18: =SQRT((Animation!$N20-FK$8)^2+(Animation!$O20-FL$8)^2) -> 0.7448177199 | FM18: =SQRT((Animation!$N20-FK$9)^2+(Animation!$O20-FL$9)^2) -> 2.997829455 | FN18: 3.11468491e-05 | FO18: 0.3023060842 | FP18: 0.004460790652 | FQ18: 0.3067980217 | FR18: 0.0001015223271 | FS18: 0.9853586491 | FT18: 0.01453982861 | FV18: =SQRT((Animation!$N20-FV$7)^2+(Animation!$O20-FW$7)^2) -> 4.338648448 | FW18: =SQRT((Animation!$N20-FV$8)^2+(Animation!$O20-FW$8)^2) -> 0.7448185364 | FX18: =SQRT((Animation!$N20-FV$9)^2+(Animation!$O20-FW$9)^2) -> 2.995710504 | FY18: 3.261058237e-05 | FZ18: 0.3023059003 | GA18: 0.004489206833 | GB18: 0.3068277177 | GC18: 0.0001062830392 | GD18: 0.9852626828 | GE18: 0.0146310342 | GG18: =SQRT((Animation!$N20-GG$7)^2+(Animation!$O20-GH$7)^2) -> 4.331987666 | GH18: =SQRT((Animation!$N20-GG$8)^2+(Animation!$O20-GH$8)^2) -> 0.7448004968 | GI18: =SQRT((Animation!$N20-GG$9)^2+(Animation!$O20-GH$9)^2) -> 2.994655295 | GJ18: 3.356599346e-05 | GK18: 0.3023099621 | GL18: 0.004503417611 | GM18: 0.3068469457 | GN18: 0.0001093900198 | GO18: 0.9852141803 | GP18: 0.01467642965 | GR18: =SQRT((Animation!$N20-GR$7)^2+(Animation!$O20-GS$7)^2) -> 4.327916717 | GS18: =SQRT((Animation!$N20-GR$8)^2+(Animation!$O20-GS$8)^2) -> 0.7447819878 | GT18: =SQRT((Animation!$N20-GR$9)^2+(Animation!$O20-GS$9)^2) -> 2.994121066 | GU18: 3.416290725e-05 | GV18: 0.3023141296 | GW18: 0.004510627449 | GX18: 0.30685892 | GY18: 0.0001113309897 | GZ18: 0.9851893165 | HA18: 0.01469935255 | HC18: =SQRT((Animation!$N20-HC$7)^2+(Animation!$O20-HD$7)^2) -> 4.325481024 | HD18: =SQRT((Animation!$N20-HC$8)^2+(Animation!$O20-HD$8)^2) -> 0.7447681661 | HE18: =SQRT((Animation!$N20-HC$9)^2+(Animation!$O20-HD$9)^2) -> 2.993841978 | HF18: 3.452483712e-05 | HG18: 0.3023172417 | HH18: 0.004514398034 | HI18: 0.3068661646 | HJ18: 0.0001125078002 | HK18: 0.9851761993 | HL18: 0.01471129292 | HN18: =SQRT((Animation!$N20-HN$7)^2+(Animation!$O20-HO$7)^2) -> 4.324043495 | HO18: =SQRT((Animation!$N20-HN$8)^2+(Animation!$O20-HO$8)^2) -> 0.7447590464 | HP18: =SQRT((Animation!$N20-HN$9)^2+(Animation!$O20-HO$9)^2) -> 2.993691513 | HQ18: 3.474014563e-05 | HR18: 0.302319295 | HS18: 0.004516432033 | HT18: 0.3068704672 | HU18: 0.0001132078494 | HV18: 0.9851690773 | HW18: 0.01471771485
B19: =SQRT((Animation!$N21-B$7)^2+(Animation!$O21-C$7)^2) -> 1.118033989 | C19: =SQRT((Animation!$N21-B$8)^2+(Animation!$O21-C$8)^2) -> 1.118033989 | D19: =SQRT((Animation!$N21-B$9)^2+(Animation!$O21-C$9)^2) -> 4.031128874 | E19: 0.2135384149 | F19: 0.2135384149 | G19: 0.0001181047597 | H19: 0.4271949346 | I19: 0.4998617671 | J19: 0.4998617671 | K19: 0.0002764657306 | M19: =SQRT((Animation!$N21-M$7)^2+(Animation!$O21-N$7)^2) -> 1.633185506 | N19: =SQRT((Animation!$N21-M$8)^2+(Animation!$O21-N$8)^2) -> 2.719385173 | O19: =SQRT((Animation!$N21-M$9)^2+(Animation!$O21-N$9)^2) -> 1.815404068 | P19: 0.1051270161 | Q19: 0.009887673563 | R19: 0.07678204173 | S19: 0.1917967314 | T19: 0.5481168284 | U19: 0.05155287835 | V19: 0.4003302932 | X19: =SQRT((Animation!$N21-X$7)^2+(Animation!$O21-Y$7)^2) -> 1.540854259 | Y19: =SQRT((Animation!$N21-X$8)^2+(Animation!$O21-Y$8)^2) -> 3.974159006 | Z19: =SQRT((Animation!$N21-X$9)^2+(Animation!$O21-Y$9)^2) -> 1.493039677 | AA19: 0.121717261 | AB19: 0.0001483541204 | AC19: 0.1308737355 | AD19: 0.2527393507 | AE19: 0.4815920461 | AF19: 0.0005869846545 | AG19: 0.5178209693 | AI19: =SQRT((Animation!$N21-AI$7)^2+(Animation!$O21-AJ$7)^2) -> 1.467947074 | AJ19: =SQRT((Animation!$N21-AI$8)^2+(Animation!$O21-AJ$8)^2) -> 4.294734764 | AK19: =SQRT((Animation!$N21-AI$9)^2+(Animation!$O21-AJ$9)^2) -> 1.552602559 | AL19: 0.1358270573 | AM19: 3.94170585e-05 | AN19: 0.1195254588 | AO19: 0.2553919332 | AP19: 0.531837696 | AQ19: 0.0001543394813 | AR19: 0.4680079645 | AT19: =SQRT((Animation!$N21-AT$7)^2+(Animation!$O21-AU$7)^2) -> 1.298059758 | AU19: =SQRT((Animation!$N21-AT$8)^2+(Animation!$O21-AU$8)^2) -> 4.326491642 | AV19: =SQRT((Animation!$N21-AT$9)^2+(Animation!$O21-AU$9)^2) -> 1.740596846 | AW19: 0.1718010598 | AX19: 3.43742268e-05 | AY19: 0.08770492508 | AZ19: 0.2595403591 | BA19: 0.6619435236 | BB19: 0.0001324427034 | BC19: 0.3379240337 | BE19: =SQRT((Animation!$N21-BE$7)^2+(Animation!$O21-BF$7)^2) -> 1.118900691 | BF19: =SQRT((Animation!$N21-BE$8)^2+(Animation!$O21-BF$8)^2) -> 4.296763869 | BG19: =SQRT((Animation!$N21-BE$9)^2+(Animation!$O21-BF$9)^2) -> 1.925119315 | BH19: 0.2133315157 | BI19: 3.907497174e-05 | BJ19: 0.06253801163 | BK19: 0.2759086023 | BL19: 0.7731963191 | BM19: 0.0001416228831 | BN19: 0.226662058 | BP19: =SQRT((Animation!$N21-BP$7)^2+(Animation!$O21-BQ$7)^2) -> 1.090013721 | BQ19: =SQRT((Animation!$N21-BP$8)^2+(Animation!$O21-BQ$8)^2) -> 4.312317362 | BR19: =SQRT((Animation!$N21-BP$9)^2+(Animation!$O21-BQ$9)^2) -> 2.089751137 | BS19: 0.2202474727 | BT19: 3.654452979e-05 | BU19: 0.04493813827 | BV19: 0.2652221555 | BW19: 0.8304263733 | BX19: 0.0001377883749 | BY19: 0.1694358383 | CA19: =SQRT((Animation!$N21-CA$7)^2+(Animation!$O21-CB$7)^2) -> 1.058848109 | CB19: =SQRT((Animation!$N21-CA$8)^2+(Animation!$O21-CB$8)^2) -> 4.319831691 | CC19: =SQRT((Animation!$N21-CA$9)^2+(Animation!$O21-CB$9)^2) -> 2.241851822 | CD19: 0.2277473925 | CE19: 3.537831658e-05 | CF19: 0.03232584128 | CG19: 0.2601086121 | CH19: 0.8755857435 | CI19: 0.0001360136302 | CJ19: 0.1242782429 | CL19: =SQRT((Animation!$N21-CL$7)^2+(Animation!$O21-CM$7)^2) -> 1.029839518 | CM19: =SQRT((Animation!$N21-CL$8)^2+(Animation!$O21-CM$8)^2) -> 4.311468945 | CN19: =SQRT((Animation!$N21-CL$9)^2+(Animation!$O21-CM$9)^2) -> 2.435974082 | CO19: 0.2347525613 | CP19: 3.667846487e-05 | CQ19: 0.02052886369 | CR19: 0.2553181035 | CS19: 0.9194512968 | CT19: 0.000143657909 | CU19: 0.08040504533 | CW19: =SQRT((Animation!$N21-CW$7)^2+(Animation!$O21-CX$7)^2) -> 0.9942119356 | CX19: =SQRT((Animation!$N21-CW$8)^2+(Animation!$O21-CX$8)^2) -> 4.29467782 | CY19: =SQRT((Animation!$N21-CW$9)^2+(Animation!$O21-CX$9)^2) -> 2.771144339 | CZ19: 0.243371251 | DA19: 3.942669933e-05 | DB19: 0.008577961283 | DC19: 0.251988639 | DD19: 0.9658024742 | DE19: 0.0001564622099 | DF19: 0.03404106359 | DH19: =SQRT((Animation!$N21-DH$7)^2+(Animation!$O21-DI$7)^2) -> 0.9247703348 | DI19: =SQRT((Animation!$N21-DH$8)^2+(Animation!$O21-DI$8)^2) -> 4.316492821 | DJ19: =SQRT((Animation!$N21-DH$9)^2+(Animation!$O21-DI$9)^2) -> 3.163994302 | DK19: 0.2601391447 | DL19: 3.589208826e-05 | DM19: 0.002673495453 | DN19: 0.2628485322 | DO19: 0.9896922097 | DP19: 0.0001365504611 | DQ19: 0.0101712398 | DS19: =SQRT((Animation!$N21-DS$7)^2+(Animation!$O21-DT$7)^2) -> 0.793521029 | DT19: =SQRT((Animation!$N21-DS$8)^2+(Animation!$O21-DT$8)^2) -> 4.333773903 | DU19: =SQRT((Animation!$N21-DS$9)^2+(Animation!$O21-DT$9)^2) -> 3.325652504 | DV19: 0.2911908616 | DW19: 3.330721043e-05 | DX19: 0.001582228754 | DY19: 0.2928063976 | DZ19: 0.9944825797 | EA19: 0.0001137516485 | EB19: 0.00540366866 | ED19: =SQRT((Animation!$N21-ED$7)^2+(Animation!$O21-EE$7)^2) -> 0.6825570156 | EE19: =SQRT((Animation!$N21-ED$8)^2+(Animation!$O21-EE$8)^2) -> 4.33485583 | EF19: =SQRT((Animation!$N21-ED$9)^2+(Animation!$O21-EE$9)^2) -> 3.433695923 | EG19: 0.3160418704 | EH19: 3.315138487e-05 | EI19: 0.00109821145 | EJ19: 0.3171732332 | EK19: 0.9964329814 | EL19: 0.0001045213826 | EM19: 0.003462497256 | EO19: =SQRT((Animation!$N21-EO$7)^2+(Animation!$O21-EP$7)^2) -> 0.6020565564 | EP19: =SQRT((Animation!$N21-EO$8)^2+(Animation!$O21-EP$8)^2) -> 4.334851424 | EQ19: =SQRT((Animation!$N21-EO$9)^2+(Animation!$O21-EP$9)^2) -> 3.524383842 | ER19: 0.3328129755 | ES19: 3.315201801e-05 | ET19: 0.0008010563484 | EU19: 0.3336471839 | EV19: 0.997499729 | EW19: 9.93624991e-05 | EX19: 0.002400908466 | EZ19: =SQRT((Animation!$N21-EZ$7)^2+(Animation!$O21-FA$7)^2) -> 0.5460429549 | FA19: =SQRT((Animation!$N21-EZ$8)^2+(Animation!$O21-FA$8)^2) -> 4.3347654 | FB19: =SQRT((Animation!$N21-EZ$9)^2+(Animation!$O21-FA$9)^2) -> 3.594641767 | FC19: 0.3436883514 | FD19: 3.316438264e-05 | FE19: 0.0006238109199 | FF19: 0.3443453267 | FG19: 0.9980921033 | FH19: 9.631140621e-05 | FI19: 0.001811585265 | FK19: =SQRT((Animation!$N21-FK$7)^2+(Animation!$O21-FL$7)^2) -> 0.5089973161 | FL19: =SQRT((Animation!$N21-FK$8)^2+(Animation!$O21-FL$8)^2) -> 4.334658493 | FM19: =SQRT((Animation!$N21-FK$9)^2+(Animation!$O21-FL$9)^2) -> 3.643838213 | FN19: 0.3504708766 | FO19: 3.317975498e-05 | FP19: 0.0005220657633 | FQ19: 0.3510261221 | FR19: 0.9984182217 | FS19: 9.452218196e-05 | FT19: 0.001487256163 | FV19: =SQRT((Animation!$N21-FV$7)^2+(Animation!$O21-FW$7)^2) -> 0.4855443008 | FW19: =SQRT((Animation!$N21-FV$8)^2+(Animation!$O21-FW$8)^2) -> 4.334561927 | FX19: =SQRT((Animation!$N21-FV$9)^2+(Animation!$O21-FW$9)^2) -> 3.675646267 | FY19: 0.3545821705 | FZ19: 3.319364608e-05 | GA19: 0.0004646963977 | GB19: 0.3550800605 | GC19: 0.9985978091 | GD19: 9.348214605e-05 | GE19: 0.001308708794 | GG19: =SQRT((Animation!$N21-GG$7)^2+(Animation!$O21-GH$7)^2) -> 0.4711689557 | GH19: =SQRT((Animation!$N21-GG$8)^2+(Animation!$O21-GH$8)^2) -> 4.334489618 | GI19: =SQRT((Animation!$N21-GG$9)^2+(Animation!$O21-GH$9)^2) -> 3.695202822 | GJ19: 0.3570288723 | GK19: 3.320405143e-05 | GL19: 0.000432382268 | GM19: 0.3574944586 | GN19: 0.9986976405 | GO19: 9.28799052e-05 | GP19: 0.001209479637 | GR19: =SQRT((Animation!$N21-GR$7)^2+(Animation!$O21-GS$7)^2) -> 0.462551023 | GS19: =SQRT((Animation!$N21-GR$8)^2+(Animation!$O21-GS$8)^2) -> 4.334441218 | GT19: =SQRT((Animation!$N21-GR$9)^2+(Animation!$O21-GS$9)^2) -> 3.70689359 | GU19: 0.3584682244 | GV19: 3.321101796e-05 | GW19: 0.0004140728741 | GX19: 0.3589155083 | GY19: 0.9987537906 | GZ19: 9.253157691e-05 | HA19: 0.001153677856 | HC19: =SQRT((Animation!$N21-HC$7)^2+(Animation!$O21-HD$7)^2) -> 0.4574581287 | HD19: =SQRT((Animation!$N21-HC$8)^2+(Animation!$O21-HD$8)^2) -> 4.334410833 | HE19: =SQRT((Animation!$N21-HC$9)^2+(Animation!$O21-HD$9)^2) -> 3.713778056 | HF19: 0.359309012 | HG19: 3.321539226e-05 | HH19: 0.0004036298718 | HI19: 0.3597458573 | HJ19: 0.9987856837 | HK19: 9.233015916e-05 | HL19: 0.001121986157 | HN19: =SQRT((Animation!$N21-HN$7)^2+(Animation!$O21-HO$7)^2) -> 0.4544748986 | HO19: =SQRT((Animation!$N21-HN$8)^2+(Animation!$O21-HO$8)^2) -> 4.334392428 | HP19: =SQRT((Animation!$N21-HN$9)^2+(Animation!$O21-HO$9)^2) -> 3.717799716 | HQ19: 0.3597980958 | HR19: 3.321804213e-05 | HS19: 0.0003976430165 | HT19: 0.3602289568 | HU19: 0.9988039244 | HV19: 9.221369216e-05 | HW19: 0.001103861888
B20: =SQRT((Animation!$N22-B$7)^2+(Animation!$O22-C$7)^2) -> 1.414213562 | C20: =SQRT((Animation!$N22-B$8)^2+(Animation!$O22-C$8)^2) -> 2.236067977 | D20: =SQRT((Animation!$N22-B$9)^2+(Animation!$O22-C$9)^2) -> 5.385164807 | E20: 0.1467626632 | F20: 0.03274717654 | G20: 2.012056066e-07 | H20: 0.1795100409 | I20: 0.8175735598 | J20: 0.1824253193 | K20: 1.120859901e-06 | M20: =SQRT((Animation!$N22-M$7)^2+(Animation!$O22-N$7)^2) -> 1.742284527 | N20: =SQRT((Animation!$N22-M$8)^2+(Animation!$O22-N$8)^2) -> 3.807097403 | O20: =SQRT((Animation!$N22-M$9)^2+(Animation!$O22-N$9)^2) -> 3.290112135 | P20: 0.08744753896 | Q20: 0.0002841711527 | R20: 0.001779616365 | S20: 0.08951132648 | T20: 0.9769438394 | U20: 0.003174694911 | V20: 0.01988146568 | X20: =SQRT((Animation!$N22-X$7)^2+(Animation!$O22-Y$7)^2) -> 1.183296813 | Y20: =SQRT((Animation!$N22-X$8)^2+(Animation!$O22-Y$8)^2) -> 4.899712517 | Z20: =SQRT((Animation!$N22-X$9)^2+(Animation!$O22-Y$9)^2) -> 2.946166653 | AA20: 0.1980899206 | AB20: 2.442398744e-06 | AC20: 0.005201087672 | AD20: 0.2032934507 | AE20: 0.974403848 | AF20: 1.201415361e-05 | AG20: 0.02558413788 | AI20: =SQRT((Animation!$N22-AI$7)^2+(Animation!$O22-AJ$7)^2) -> 0.8286189254 | AJ20: =SQRT((Animation!$N22-AI$8)^2+(Animation!$O22-AJ$8)^2) -> 5.121441056 | AK20: =SQRT((Animation!$N22-AI$9)^2+(Animation!$O22-AJ$9)^2) -> 2.997565406 | AL20: 0.2830184483 | AM20: 8.041196349e-07 | AN20: 0.004464322938 | AO20: 0.2874835754 | AP20: 0.984468236 | AQ20: 2.797097656e-06 | AR20: 0.01552896694 | AT20: =SQRT((Animation!$N22-AT$7)^2+(Animation!$O22-AU$7)^2) -> 0.5392852966 | AU20: =SQRT((Animation!$N22-AT$8)^2+(Animation!$O22-AU$8)^2) -> 5.063637147 | AV20: =SQRT((Animation!$N22-AT$9)^2+(Animation!$O22-AU$9)^2) -> 3.168634924 | AW20: 0.344951018 | AX20: 1.079352634e-06 | AY20: 0.002634499199 | AZ20: 0.3475865966 | BA20: 0.9924174908 | BB20: 3.105276913e-06 | BC20: 0.00757940388 | BE20: =SQRT((Animation!$N22-BE$7)^2+(Animation!$O22-BF$7)^2) -> 0.4050215605 | BF20: =SQRT((Animation!$N22-BE$8)^2+(Animation!$O22-BF$8)^2) -> 4.9251221 | BG20: =SQRT((Animation!$N22-BE$9)^2+(Animation!$O22-BF$9)^2) -> 3.340415338 | BH20: 0.3675265326 | BI20: 2.155792006e-06 | BJ20: 0.001506259506 | BK20: 0.3690349479 | BL20: 0.9959125408 | BM20: 5.841701493e-06 | BN20: 0.004081617514 | BP20: =SQRT((Animation!$N22-BP$7)^2+(Animation!$O22-BQ$7)^2) -> 0.5768965467 | BQ20: =SQRT((Animation!$N22-BP$8)^2+(Animation!$O22-BQ$8)^2) -> 4.887746182 | BR20: =SQRT((Animation!$N22-BP$9)^2+(Animation!$O22-BQ$9)^2) -> 3.493967296 | BS20: 0.3377857886 | BT20: 2.589696415e-06 | BU20: 0.0008912886092 | BV20: 0.3386796669 | BW20: 0.9973606969 | BX20: 7.646447862e-06 | BY20: 0.002631656685 | CA20: =SQRT((Animation!$N22-CA$7)^2+(Animation!$O22-CB$7)^2) -> 0.6035530389 | CB20: =SQRT((Animation!$N22-CA$8)^2+(Animation!$O22-CB$8)^2) -> 4.866715743 | CC20: =SQRT((Animation!$N22-CA$9)^2+(Animation!$O22-CB$9)^2) -> 3.633858348 | CD20: 0.3325128847 | CE20: 2.869422997e-06 | CF20: 0.0005413731468 | CG20: 0.3330571273 | CH20: 0.9983659183 | CI20: 8.615407874e-06 | CJ20: 0.001625466331 | CL20: =SQRT((Animation!$N22-CL$7)^2+(Animation!$O22-CM$7)^2) -> 0.6235648161 | CM20: =SQRT((Animation!$N22-CL$8)^2+(Animation!$O22-CM$8)^2) -> 4.816913734 | CN20: =SQRT((Animation!$N22-CL$9)^2+(Animation!$O22-CM$9)^2) -> 3.811997397 | CO20: 0.3284551194 | CP20: 3.6518835e-06 | CQ20: 0.0002789158008 | CR20: 0.3287376871 | CS20: 0.9991404463 | CT20: 1.110880694e-05 | CU20: 0.0008484448596 | CW20: =SQRT((Animation!$N22-CW$7)^2+(Animation!$O22-CX$7)^2) -> 0.6497230998 | CX20: =SQRT((Animation!$N22-CW$8)^2+(Animation!$O22-CX$8)^2) -> 4.700559963 | CY20: =SQRT((Animation!$N22-CW$9)^2+(Animation!$O22-CX$9)^2) -> 4.120302846 | CZ20: 0.3230304827 | DA20: 6.353081962e-06 | DB20: 8.21152916e-05 | DC20: 0.3231189511 | DD20: 0.9997262049 | DE20: 1.966174358e-05 | DF20: 0.0002541333194 | DH20: =SQRT((Animation!$N22-DH$7)^2+(Animation!$O22-DI$7)^2) -> 0.7050581613 | DI20: =SQRT((Animation!$N22-DH$8)^2+(Animation!$O22-DI$8)^2) -> 4.550851869 | DJ20: =SQRT((Animation!$N22-DH$9)^2+(Animation!$O22-DI$9)^2) -> 4.484324096 | DK20: 0.3111463065 | DL20: 1.26980147e-05 | DM20: 1.714987225e-05 | DN20: 0.3111761544 | DO20: 0.9999040804 | DP20: 4.080651594e-05 | DQ20: 5.511306701e-05 | DS20: =SQRT((Animation!$N22-DS$7)^2+(Animation!$O22-DT$7)^2) -> 0.8185568997 | DT20: =SQRT((Animation!$N22-DS$8)^2+(Animation!$O22-DT$8)^2) -> 4.532398348 | DU20: =SQRT((Animation!$N22-DS$9)^2+(Animation!$O22-DT$9)^2) -> 4.632645051 | DV20: 0.2853735566 | DW20: 1.380808971e-05 | DX20: 8.722203827e-06 | DY20: 0.2853960869 | DZ20: 0.9999210561 | EA20: 4.838219704e-05 | EB20: 3.056174989e-05 | ED20: =SQRT((Animation!$N22-ED$7)^2+(Animation!$O22-EE$7)^2) -> 0.9194391013 | EE20: =SQRT((Animation!$N22-ED$8)^2+(Animation!$O22-EE$8)^2) -> 4.532390078 | EF20: =SQRT((Animation!$N22-ED$9)^2+(Animation!$O22-EE$9)^2) -> 4.730730979 | EG20: 0.2614211257 | EH20: 1.38086073e-05 | EI20: 5.510548842e-06 | EJ20: 0.2614404448 | EK20: 0.9999261049 | EL20: 5.281741053e-05 | EM20: 2.107764484e-05 | EO20: =SQRT((Animation!$N22-EO$7)^2+(Animation!$O22-EP$7)^2) -> 0.9944619562 | EP20: =SQRT((Animation!$N22-EO$8)^2+(Animation!$O22-EP$8)^2) -> 4.532222483 | EQ20: =SQRT((Animation!$N22-EO$9)^2+(Animation!$O22-EP$9)^2) -> 4.813306193 | ER20: 0.2433107553 | ES20: 1.381910018e-05 | ET20: 3.715873468e-06 | EU20: 0.2433282902 | EV20: 0.999927937 | EW20: 5.679199967e-05 | EX20: 1.527102937e-05 | EZ20: =SQRT((Animation!$N22-EZ$7)^2+(Animation!$O22-FA$7)^2) -> 1.047174872 | FA20: =SQRT((Animation!$N22-EZ$8)^2+(Animation!$O22-FA$8)^2) -> 4.532056286 | FB20: =SQRT((Animation!$N22-EZ$9)^2+(Animation!$O22-FA$9)^2) -> 4.877442978 | FC20: 0.2305641517 | FD20: 1.382951302e-05 | FE20: 2.723307199e-06 | FF20: 0.2305807045 | FG20: 0.9999282125 | FH20: 5.997688769e-05 | FI20: 1.181064653e-05 | FK20: =SQRT((Animation!$N22-FK$7)^2+(Animation!$O22-FL$7)^2) -> 1.082000048 | FL20: =SQRT((Animation!$N22-FK$8)^2+(Animation!$O22-FL$8)^2) -> 4.531913206 | FM20: =SQRT((Animation!$N22-FK$9)^2+(Animation!$O22-FL$9)^2) -> 4.922452325 | FN20: 0.2221726303 | FO20: 1.38384835e-05 | FP20: 2.184317845e-06 | FQ20: 0.2221886531 | FR20: 0.9999278865 | FS20: 6.228258422e-05 | FT20: 9.830915371e-06 | FV20: =SQRT((Animation!$N22-FV$7)^2+(Animation!$O22-FW$7)^2) -> 1.103901437 | FW20: =SQRT((Animation!$N22-FV$8)^2+(Animation!$O22-FW$8)^2) -> 4.531804335 | FX20: =SQRT((Animation!$N22-FV$9)^2+(Animation!$O22-FW$9)^2) -> 4.951605509 | FY20: 0.2169175993 | FZ20: 1.384531297e-05 | GA20: 1.891506247e-06 | GB20: 0.2169333361 | GC20: 0.9999274578 | GD20: 6.382289239e-05 | GE20: 8.719297278e-06 | GG20: =SQRT((Animation!$N22-GG$7)^2+(Animation!$O22-GH$7)^2) -> 1.11722579 | GH20: =SQRT((Animation!$N22-GG$8)^2+(Animation!$O22-GH$8)^2) -> 4.531729842 | GI20: =SQRT((Animation!$N22-GG$9)^2+(Animation!$O22-GH$9)^2) -> 4.969553989 | GJ20: 0.2137313842 | GK20: 1.384998772e-05 | GL20: 1.730375784e-06 | GM20: 0.2137469646 | GN20: 0.9999271084 | GO20: 6.479618433e-05 | GP20: 8.095440266e-06 | GR20: =SQRT((Animation!$N22-GR$7)^2+(Animation!$O22-GS$7)^2) -> 1.125166107 | GS20: =SQRT((Animation!$N22-GR$8)^2+(Animation!$O22-GS$8)^2) -> 4.531682406 | GT20: =SQRT((Animation!$N22-GR$9)^2+(Animation!$O22-GS$9)^2) -> 4.980293507 | GU20: 0.2118370532 | GV20: 1.385296531e-05 | GW20: 1.640351124e-06 | GX20: 0.2118525465 | GY20: 0.9999268675 | GZ20: 6.538965682e-05 | HA20: 7.742890758e-06 | HC20: =SQRT((Animation!$N22-HC$7)^2+(Animation!$O22-HD$7)^2) -> 1.129839434 | HD20: =SQRT((Animation!$N22-HC$8)^2+(Animation!$O22-HD$8)^2) -> 4.531653455 | HE20: =SQRT((Animation!$N22-HC$9)^2+(Animation!$O22-HD$9)^2) -> 4.986621642 | HF20: 0.2107237793 | HG20: 1.385478284e-05 | HH20: 1.589428193e-06 | HI20: 0.2107392235 | HJ20: 0.9999267141 | HK20: 6.574373111e-05 | HL20: 7.542156445e-06 | HN20: =SQRT((Animation!$N22-HN$7)^2+(Animation!$O22-HO$7)^2) -> 1.13256984 | HO20: =SQRT((Animation!$N22-HN$8)^2+(Animation!$O22-HO$8)^2) -> 4.531636202 | HP20: =SQRT((Animation!$N22-HN$9)^2+(Animation!$O22-HO$9)^2) -> 4.990319705 | HQ20: 0.2100739317 | HR20: 1.385586617e-05 | HS20: 1.560375731e-06 | HT20: 0.210089348 | HU20: 0.9999266205 | HV20: 6.595225462e-05 | HW20: 7.427200599e-06
B21: =SQRT((Animation!$N23-B$7)^2+(Animation!$O23-C$7)^2) -> 2.236067977 | C21: =SQRT((Animation!$N23-B$8)^2+(Animation!$O23-C$8)^2) -> 2.828427125 | D21: =SQRT((Animation!$N23-B$9)^2+(Animation!$O23-C$9)^2) -> 5.099019514 | E21: 0.03274717654 | F21: 0.007306882745 | G21: 9.017409681e-07 | H21: 0.04005496102 | I21: 0.8175560705 | J21: 0.1824214169 | K21: 2.251259133e-05 | M21: =SQRT((Animation!$N23-M$7)^2+(Animation!$O23-N$7)^2) -> 2.655450605 | N21: =SQRT((Animation!$N23-M$8)^2+(Animation!$O23-N$8)^2) -> 4.457333108 | O21: =SQRT((Animation!$N23-M$9)^2+(Animation!$O23-N$9)^2) -> 3.566123494 | P21: 0.0117412442 | Q21: 1.934942702e-05 | R21: 0.0006908713569 | S21: 0.01245146498 | T21: 0.9429608657 | U21: 0.001553987988 | V21: 0.05548514635 | X21: =SQRT((Animation!$N23-X$7)^2+(Animation!$O23-Y$7)^2) -> 2.146770744 | Y21: =SQRT((Animation!$N23-X$8)^2+(Animation!$O23-Y$8)^2) -> 5.647110446 | Z21: =SQRT((Animation!$N23-X$9)^2+(Animation!$O23-Y$9)^2) -> 3.273562273 | AA21: 0.03982538141 | AB21: 4.743683846e-08 | AC21: 0.00187894748 | AD21: 0.04170437632 | AE21: 0.9549448983 | AF21: 1.137454691e-06 | AG21: 0.04505396425 | AI21: =SQRT((Animation!$N23-AI$7)^2+(Animation!$O23-AJ$7)^2) -> 1.805482834 | AJ21: =SQRT((Animation!$N23-AI$8)^2+(Animation!$O23-AJ$8)^2) -> 5.914881139 | AK21: =SQRT((Animation!$N23-AI$9)^2+(Animation!$O23-AJ$9)^2) -> 3.337421094 | AL21: 0.07817364837 | AM21: 1.008871889e-08 | AN21: 0.001521393917 | AO21: 0.07969505237 | AP21: 0.9809096806 | AQ21: 1.265915335e-07 | AR21: 0.01909019283 | AT21: =SQRT((Animation!$N23-AT$7)^2+(Animation!$O23-AU$7)^2) -> 1.485300412 | AU21: =SQRT((Animation!$N23-AT$8)^2+(Animation!$O23-AU$8)^2) -> 5.891810161 | AV21: =SQRT((Animation!$N23-AT$9)^2+(Animation!$O23-AU$9)^2) -> 3.531390731 | AW21: 0.1323907913 | AX21: 1.156072777e-08 | AY21: 0.0007814973643 | AZ21: 0.1331723003 | BA21: 0.9941315955 | BB21: 8.681030326e-08 | BC21: 0.005868317681 | BE21: =SQRT((Animation!$N23-BE$7)^2+(Animation!$O23-BF$7)^2) -> 0.9630658716 | BF21: =SQRT((Animation!$N23-BE$8)^2+(Animation!$O23-BF$8)^2) -> 5.789564757 | BG21: =SQRT((Animation!$N23-BE$9)^2+(Animation!$O23-BF$9)^2) -> 3.718936737 | BH21: 0.2509036019 | BI21: 2.100577223e-08 | BJ21: 0.0003959653859 | BK21: 0.2512995883 | BL21: 0.9984242458 | BM21: 8.358856602e-08 | BN21: 0.001575670651 | BP21: =SQRT((Animation!$N23-BP$7)^2+(Animation!$O23-BQ$7)^2) -> 0.8059957284 | BQ21: =SQRT((Animation!$N23-BP$8)^2+(Animation!$O23-BQ$8)^2) -> 5.76823675 | BR21: =SQRT((Animation!$N23-BP$9)^2+(Animation!$O23-BQ$9)^2) -> 3.885738762 | BS21: 0.2883001684 | BT21: 2.376109797e-08 | BU21: 0.0002099961426 | BV21: 0.2885101883 | BW21: 0.9992720538 | BX21: 8.235791642e-08 | BY21: 0.0007278638716 | CA21: =SQRT((Animation!$N23-CA$7)^2+(Animation!$O23-CB$7)^2) -> 0.8254955439 | CB21: =SQRT((Animation!$N23-CA$8)^2+(Animation!$O23-CB$8)^2) -> 5.755375054 | CC21: =SQRT((Animation!$N23-CA$9)^2+(Animation!$O23-CB$9)^2) -> 4.039987606 | CD21: 0.283750491 | CE21: 2.558883947e-08 | CF21: 0.0001139571039 | CG21: 0.2838644737 | CH21: 0.9995984609 | CI21: 9.014456489e-08 | CJ21: 0.0004014489816 | CL21: =SQRT((Animation!$N23-CL$7)^2+(Animation!$O23-CM$7)^2) -> 0.8481226307 | CM21: =SQRT((Animation!$N23-CL$8)^2+(Animation!$O23-CM$8)^2) -> 5.716674236 | CN21: =SQRT((Animation!$N23-CL$9)^2+(Animation!$O23-CM$9)^2) -> 4.236248435 | CO21: 0.2784283478 | CP21: 3.194913619e-08 | CQ21: 5.058583625e-05 | CR21: 0.2784789656 | CS21: 0.9998182348 | CT21: 1.147272869e-07 | CU21: 0.0001816504745 | CW21: =SQRT((Animation!$N23-CW$7)^2+(Animation!$O23-CX$7)^2) -> 0.8760266693 | CX21: =SQRT((Animation!$N23-CW$8)^2+(Animation!$O23-CX$8)^2) -> 5.624383247 | CY21: =SQRT((Animation!$N23-CW$9)^2+(Animation!$O23-CX$9)^2) -> 4.57346318 | CZ21: 0.2718105682 | DA21: 5.391905014e-08 | DB21: 1.145343055e-05 | DC21: 0.2718220755 | DD21: 0.9999576659 | DE21: 1.983615571e-07 | DF21: 4.213576298e-05 | DH21: =SQRT((Animation!$N23-DH$7)^2+(Animation!$O23-DI$7)^2) -> 0.9308778177 | DI21: =SQRT((Animation!$N23-DH$8)^2+(Animation!$O23-DI$8)^2) -> 5.508400682 | DJ21: =SQRT((Animation!$N23-DH$9)^2+(Animation!$O23-DI$9)^2) -> 4.966719881 | DK21: 0.2586691909 | DL21: 1.02831144e-07 | DM21: 1.754912221e-06 | DN21: 0.2586710486 | DO21: 0.9999928181 | DP21: 3.975363482e-07 | DQ21: 6.78433953e-06 | DS21: =SQRT((Animation!$N23-DS$7)^2+(Animation!$O23-DT$7)^2) -> 1.039003737 | DT21: =SQRT((Animation!$N23-DS$8)^2+(Animation!$O23-DT$8)^2) -> 5.495821204 | DU21: =SQRT((Animation!$N23-DS$9)^2+(Animation!$O23-DT$9)^2) -> 5.12801583 | DV21: 0.2325377001 | DW21: 1.102005569e-07 | DX21: 7.774770526e-07 | DY21: 0.2325385877 | DZ21: 0.9999961827 | EA21: 4.73902237e-07 | EB21: 3.343432418e-06 | ED21: =SQRT((Animation!$N23-ED$7)^2+(Animation!$O23-EE$7)^2) -> 1.135755071 | EE21: =SQRT((Animation!$N23-ED$8)^2+(Animation!$O23-EE$8)^2) -> 5.495989601 | EF21: =SQRT((Animation!$N23-ED$9)^2+(Animation!$O23-EE$9)^2) -> 5.235555983 | EG21: 0.2093163941 | EH21: 1.100986144e-07 | EI21: 4.453248787e-07 | EJ21: 0.2093169495 | EK21: 0.9999973465 | EL21: 5.259899624e-07 | EM21: 2.12751466e-06 | EO21: =SQRT((Animation!$N23-EO$7)^2+(Animation!$O23-EP$7)^2) -> 1.208843084 | EP21: =SQRT((Animation!$N23-EO$8)^2+(Animation!$O23-EP$8)^2) -> 5.495847138 | EQ21: =SQRT((Animation!$N23-EO$9)^2+(Animation!$O23-EP$9)^2) -> 5.325700369 | ER21: 0.1921287932 | ES21: 1.101848512e-07 | ET21: 2.766588315e-07 | EU21: 0.19212918 | EV21: 0.9999979865 | EW21: 5.734935797e-07 | EX21: 1.439962589e-06 | EZ21: =SQRT((Animation!$N23-EZ$7)^2+(Animation!$O23-FA$7)^2) -> 1.26113163 | FA21: =SQRT((Animation!$N23-EZ$8)^2+(Animation!$O23-FA$8)^2) -> 5.495692642 | FB21: =SQRT((Animation!$N23-EZ$9)^2+(Animation!$O23-FA$9)^2) -> 5.395473319 | FC21: 0.1801140483 | FD21: 1.102784463e-07 | FE21: 1.903303285e-07 | FF21: 0.1801143489 | FG21: 0.999998331 | FH21: 6.122690777e-07 | FI21: 1.05671941e-06 | FK21: =SQRT((Animation!$N23-FK$7)^2+(Animation!$O23-FL$7)^2) -> 1.296377151 | FL21: =SQRT((Animation!$N23-FK$8)^2+(Animation!$O23-FL$8)^2) -> 5.495554318 | FM21: =SQRT((Animation!$N23-FK$9)^2+(Animation!$O23-FL$9)^2) -> 5.44430275 | FN21: 0.1721764611 | FO21: 1.103623094e-07 | FP21: 1.460736708e-07 | FQ21: 0.1721767175 | FR21: 0.9999985106 | FS21: 6.409827704e-07 | FT21: 8.48393865e-07 | FV21: =SQRT((Animation!$N23-FV$7)^2+(Animation!$O23-FW$7)^2) -> 1.318963742 | FW21: =SQRT((Animation!$N23-FV$8)^2+(Animation!$O23-FW$8)^2) -> 5.495446602 | FX21: =SQRT((Animation!$N23-FV$9)^2+(Animation!$O23-FW$9)^2) -> 5.475863904 | FY21: 0.1671654549 | FZ21: 1.104276579e-07 | GA21: 1.229508347e-07 | GB21: 0.1671656883 | GC21: 0.9999986039 | GD21: 6.60588061e-07 | GE21: 7.355028172e-07 | GG21: =SQRT((Animation!$N23-GG$7)^2+(Animation!$O23-GH$7)^2) -> 1.332909645 | GH21: =SQRT((Animation!$N23-GG$8)^2+(Animation!$O23-GH$8)^2) -> 5.495371891 | GI21: =SQRT((Animation!$N23-GG$9)^2+(Animation!$O23-GH$9)^2) -> 5.495265765 | GJ21: 0.1641027384 | GK21: 1.104730053e-07 | GL21: 1.105374515e-07 | GM21: 0.1641029594 | GN21: 0.9999986532 | GO21: 6.731932545e-07 | GP21: 6.735859725e-07 | GR21: =SQRT((Animation!$N23-GR$7)^2+(Animation!$O23-GS$7)^2) -> 1.341305674 | GS21: =SQRT((Animation!$N23-GR$8)^2+(Animation!$O23-GS$8)^2) -> 5.495323935 | GT21: =SQRT((Animation!$N23-GR$9)^2+(Animation!$O23-GS$9)^2) -> 5.506863256 | GU21: 0.1622707588 | GV21: 1.105021227e-07 | GW21: 1.03705572e-07 | GX21: 0.162270973 | GY21: 0.9999986799 | GZ21: 6.809728235e-07 | HA21: 6.390888652e-07 | HC21: =SQRT((Animation!$N23-HC$7)^2+(Animation!$O23-HD$7)^2) -> 1.346279506 | HD21: =SQRT((Animation!$N23-HC$8)^2+(Animation!$O23-HD$8)^2) -> 5.49529453 | HE21: =SQRT((Animation!$N23-HC$9)^2+(Animation!$O23-HD$9)^2) -> 5.513692576 | HF21: 0.1611897901 | HG21: 1.105199799e-07 | HH21: 9.987549829e-08 | HI21: 0.1611900005 | HJ21: 0.9999986947 | HK21: 6.856503477e-07 | HL21: 6.196134869e-07 | HN21: =SQRT((Animation!$N23-HN$7)^2+(Animation!$O23-HO$7)^2) -> 1.34919705 | HO21: =SQRT((Animation!$N23-HN$8)^2+(Animation!$O23-HO$8)^2) -> 5.495276957 | HP21: =SQRT((Animation!$N23-HN$9)^2+(Animation!$O23-HO$9)^2) -> 5.517681961 | HQ21: 0.1605572225 | HR21: 1.10530653e-07 | HS21: 9.770182061e-08 | HT21: 0.1605574307 | HU21: 0.9999987031 | HV21: 6.884181721e-07 | HW21: 6.085163432e-07
B22: =SQRT((Animation!$N24-B$7)^2+(Animation!$O24-C$7)^2) -> 2.5 | C22: =SQRT((Animation!$N24-B$8)^2+(Animation!$O24-C$8)^2) -> 1.5 | D22: =SQRT((Animation!$N24-B$9)^2+(Animation!$O24-C$9)^2) -> 3.354101966 | E22: 0.01752830049 | F22: 0.1295175957 | G22: 0.001438810522 | H22: 0.1484847067 | I22: 0.1180478508 | J22: 0.8722621916 | K22: 0.009689957667 | M22: =SQRT((Animation!$N24-M$7)^2+(Animation!$O24-N$7)^2) -> 2.675895811 | N22: =SQRT((Animation!$N24-M$8)^2+(Animation!$O24-N$8)^2) -> 1.24738982 | O22: =SQRT((Animation!$N24-M$9)^2+(Animation!$O24-N$9)^2) -> 0.6036818471 | P22: 0.01111846846 | Q22: 0.1832453682 | R22: 0.3324870326 | S22: 0.5268508692 | T22: 0.02110363503 | U22: 0.3478125953 | V22: 0.6310837697 | X22: =SQRT((Animation!$N24-X$7)^2+(Animation!$O24-Y$7)^2) -> 3.076445877 | Y22: =SQRT((Animation!$N24-X$8)^2+(Animation!$O24-Y$8)^2) -> 2.441367563 | Z22: =SQRT((Animation!$N24-X$9)^2+(Animation!$O24-Y$9)^2) -> 0.7693383575 | AA22: 0.003513304786 | AB22: 0.02026061711 | AC22: 0.2967458331 | AD22: 0.320519755 | AE22: 0.01096127378 | AF22: 0.06321175776 | AG22: 0.9258269685 | AI22: =SQRT((Animation!$N24-AI$7)^2+(Animation!$O24-AJ$7)^2) -> 3.246442472 | AJ22: =SQRT((Animation!$N24-AI$8)^2+(Animation!$O24-AJ$8)^2) -> 2.882511155 | AK22: =SQRT((Animation!$N24-AI$9)^2+(Animation!$O24-AJ$9)^2) -> 0.7008294844 | AL22: 0.002052630997 | AM22: 0.006261260155 | AN22: 0.3120725718 | AO22: 0.320386463 | AP22: 0.006406734473 | AQ22: 0.01954283617 | AR22: 0.9740504294 | AT22: =SQRT((Animation!$N24-AT$7)^2+(Animation!$O24-AU$7)^2) -> 3.26013974 | AU22: =SQRT((Animation!$N24-AT$8)^2+(Animation!$O24-AU$8)^2) -> 3.068604862 | AV22: =SQRT((Animation!$N24-AT$9)^2+(Animation!$O24-AU$9)^2) -> 0.5017744822 | AW22: 0.001963171316 | AX22: 0.003598974149 | AY22: 0.3517525447 | AZ22: 0.3573146901 | BA22: 0.005494236229 | BB22: 0.01007228152 | BC22: 0.9844334823 | BE22: =SQRT((Animation!$N24-BE$7)^2+(Animation!$O24-BF$7)^2) -> 3.307417986 | BF22: =SQRT((Animation!$N24-BE$8)^2+(Animation!$O24-BF$8)^2) -> 3.236317367 | BG22: =SQRT((Animation!$N24-BE$9)^2+(Animation!$O24-BF$9)^2) -> 0.3123804506 | BH22: 0.001680867244 | BI22: 0.002121114583 | BJ22: 0.3799447977 | BK22: 0.3837467795 | BL22: 0.004380146842 | BM22: 0.005527380806 | BN22: 0.9900924724 | BP22: =SQRT((Animation!$N24-BP$7)^2+(Animation!$O24-BQ$7)^2) -> 3.318393809 | BQ22: =SQRT((Animation!$N24-BP$8)^2+(Animation!$O24-BQ$8)^2) -> 3.339902137 | BR22: =SQRT((Animation!$N24-BP$9)^2+(Animation!$O24-BQ$9)^2) -> 0.1468718883 | BS22: 0.001620845636 | BT22: 0.001508843712 | BU22: 0.3946625397 | BV22: 0.3977922291 | BW22: 0.004074603568 | BX22: 0.003793044714 | BY22: 0.9921323517 | CA22: =SQRT((Animation!$N24-CA$7)^2+(Animation!$O24-CB$7)^2) -> 3.2883385 | CB22: =SQRT((Animation!$N24-CA$8)^2+(Animation!$O24-CB$8)^2) -> 3.394538393 | CC22: =SQRT((Animation!$N24-CA$9)^2+(Animation!$O24-CB$9)^2) -> 0.06290487901 | CD22: 0.001790028785 | CE22: 0.001255295867 | CF22: 0.3981537487 | CG22: 0.4011990733 | CH22: 0.004461697208 | CI22: 0.003128860335 | CJ22: 0.9924094425 | CL22: =SQRT((Animation!$N24-CL$7)^2+(Animation!$O24-CM$7)^2) -> 3.259714556 | CM22: =SQRT((Animation!$N24-CL$8)^2+(Animation!$O24-CM$8)^2) -> 3.458207645 | CN22: =SQRT((Animation!$N24-CL$9)^2+(Animation!$O24-CM$9)^2) -> 0.2373896491 | CO22: 0.001965894291 | CP22: 0.001009259294 | CQ22: 0.3878582055 | CR22: 0.3908333591 | CS22: 0.005030006383 | CT22: 0.002582326381 | CU22: 0.9923876672 | CW22: =SQRT((Animation!$N24-CW$7)^2+(Animation!$O24-CX$7)^2) -> 3.224634001 | CX22: =SQRT((Animation!$N24-CW$8)^2+(Animation!$O24-CX$8)^2) -> 3.610793005 | CY22: =SQRT((Animation!$N24-CW$9)^2+(Animation!$O24-CX$9)^2) -> 0.5854043372 | CZ22: 0.002202701418 | DA22: 0.0005885482797 | DB22: 0.3361197942 | DC22: 0.3389110439 | DD22: 0.00649934978 | DE22: 0.001736586312 | DF22: 0.9917640639 | DH22: =SQRT((Animation!$N24-DH$7)^2+(Animation!$O24-DI$7)^2) -> 3.156458652 | DI22: =SQRT((Animation!$N24-DH$8)^2+(Animation!$O24-DI$8)^2) -> 3.902438765 | DJ22: =SQRT((Animation!$N24-DH$9)^2+(Animation!$O24-DI$9)^2) -> 0.9936360635 | DK22: 0.002737927195 | DL22: 0.0001967743947 | DM22: 0.24351059 | DN22: 0.2464452916 | DO22: 0.0111096754 | DP22: 0.0007984506153 | DQ22: 0.988091874 | DS22: =SQRT((Animation!$N24-DS$7)^2+(Animation!$O24-DT$7)^2) -> 3.027601232 | DT22: =SQRT((Animation!$N24-DS$8)^2+(Animation!$O24-DT$8)^2) -> 3.971413971 | DU22: =SQRT((Animation!$N24-DS$9)^2+(Animation!$O24-DT$9)^2) -> 1.164576149 | DV22: 0.004078103837 | DW22: 0.0001499808409 | DX22: 0.2024915064 | DY22: 0.2067195911 | DZ22: 0.01972770852 | EA22: 0.0007255279487 | EB22: 0.9795467635 | ED22: =SQRT((Animation!$N24-ED$7)^2+(Animation!$O24-EE$7)^2) -> 2.918104496 | EE22: =SQRT((Animation!$N24-ED$8)^2+(Animation!$O24-EE$8)^2) -> 3.973938457 | EF22: =SQRT((Animation!$N24-ED$9)^2+(Animation!$O24-EE$9)^2) -> 1.280484138 | EG22: 0.00564714338 | EH22: 0.000148484206 | EI22: 0.1757384715 | EJ22: 0.181534099 | EK22: 0.03110789328 | EL22: 0.0008179411292 | EM22: 0.9680741656 | EO22: =SQRT((Animation!$N24-EO$7)^2+(Animation!$O24-EP$7)^2) -> 2.838100614 | EP22: =SQRT((Animation!$N24-EO$8)^2+(Animation!$O24-EP$8)^2) -> 3.974187974 | EQ22: =SQRT((Animation!$N24-EO$9)^2+(Animation!$O24-EP$9)^2) -> 1.377413092 | ER22: 0.007109338468 | ES22: 0.0001483370425 | ET22: 0.1544983371 | EU22: 0.1617560126 | EV22: 0.04395099974 | EW22: 0.0009170419087 | EX22: 0.9551319584 | EZ22: =SQRT((Animation!$N24-EZ$7)^2+(Animation!$O24-FA$7)^2) -> 2.782037993 | FA22: =SQRT((Animation!$N24-EZ$8)^2+(Animation!$O24-FA$8)^2) -> 3.974245861 | FB22: =SQRT((Animation!$N24-EZ$9)^2+(Animation!$O24-FA$9)^2) -> 1.452273963 | FC22: 0.008322386467 | FD22: 0.0001483029206 | FE22: 0.1389712273 | FF22: 0.1474419167 | FG22: 0.05644518637 | FH22: 0.001005839614 | FI22: 0.942548974 | FK22: =SQRT((Animation!$N24-FK$7)^2+(Animation!$O24-FL$7)^2) -> 2.744755157 | FL22: =SQRT((Animation!$N24-FK$8)^2+(Animation!$O24-FL$8)^2) -> 3.974219448 | FM22: =SQRT((Animation!$N24-FK$9)^2+(Animation!$O24-FL$9)^2) -> 1.50455578 | FN22: 0.00922554539 | FO22: 0.000148318489 | FP22: 0.1286341975 | FQ22: 0.1380080614 | FR22: 0.0668478732 | FS22: 0.001074708879 | FT22: 0.9320774179 | FV22: =SQRT((Animation!$N24-FV$7)^2+(Animation!$O24-FW$7)^2) -> 2.721070772 | FW22: =SQRT((Animation!$N24-FV$8)^2+(Animation!$O24-FW$8)^2) -> 3.974164026 | FX22: =SQRT((Animation!$N24-FV$9)^2+(Animation!$O24-FW$9)^2) -> 1.53828636 | FY22: 0.009842440244 | FZ22: 0.0001483511609 | GA22: 0.1221994179 | GB22: 0.1321902093 | GC22: 0.07445665074 | GD22: 0.001122255284 | GE22: 0.924421094 | GG22: =SQRT((Animation!$N24-GG$7)^2+(Animation!$O24-GH$7)^2) -> 2.706526893 | GH22: =SQRT((Animation!$N24-GG$8)^2+(Animation!$O24-GH$8)^2) -> 3.97411163 | GI22: =SQRT((Animation!$N24-GG$9)^2+(Animation!$O24-GH$9)^2) -> 1.558991442 | GJ22: 0.01023868133 | GK22: 0.000148382055 | GL22: 0.1183432839 | GM22: 0.1287303473 | GN22: 0.07953587901 | GO22: 0.001152657925 | GP22: 0.9193114631 | GR22: =SQRT((Animation!$N24-GR$7)^2+(Animation!$O24-GS$7)^2) -> 2.697799884 | GS22: =SQRT((Animation!$N24-GR$8)^2+(Animation!$O24-GS$8)^2) -> 3.9740728 | GT22: =SQRT((Animation!$N24-GR$9)^2+(Animation!$O24-GS$9)^2) -> 1.571354875 | GU22: 0.01048299728 | GV22: 0.0001484049543 | GW22: 0.1160752484 | GX22: 0.1267066507 | GY22: 0.08273438867 | GZ22: 0.00117124834 | HA22: 0.916094363 | HC22: =SQRT((Animation!$N24-HC$7)^2+(Animation!$O24-HD$7)^2) -> 2.692640148 | HD22: =SQRT((Animation!$N24-HC$8)^2+(Animation!$O24-HD$8)^2) -> 3.974047136 | HE22: =SQRT((Animation!$N24-HC$9)^2+(Animation!$O24-HD$9)^2) -> 1.578630133 | HF22: 0.01062979877 | HG22: 0.0001484200908 | HH22: 0.1147527939 | HI22: 0.1255310128 | HJ22: 0.08467866649 | HK22: 0.001182338034 | HL22: 0.9141389955 | HN22: =SQRT((Animation!$N24-HN$7)^2+(Animation!$O24-HO$7)^2) -> 2.689617045 | HO22: =SQRT((Animation!$N24-HN$8)^2+(Animation!$O24-HO$8)^2) -> 3.974031154 | HP22: =SQRT((Animation!$N24-HN$9)^2+(Animation!$O24-HO$9)^2) -> 1.582878148 | HQ22: 0.01071663086 | HR22: 0.0001484295177 | HS22: 0.1139848027 | HT22: 0.1248498631 | HU22: 0.08583614428 | HV22: 0.001188864081 | HW22: 0.9129749916
B23: =SQRT((Animation!$N25-B$7)^2+(Animation!$O25-C$7)^2) -> 5.830951895 | C23: =SQRT((Animation!$N25-B$8)^2+(Animation!$O25-C$8)^2) -> 5 | D23: =SQRT((Animation!$N25-B$9)^2+(Animation!$O25-C$9)^2) -> 6.08276253 | E23: 1.651596194e-08 | F23: 1.486719515e-06 | G23: 3.685209233e-09 | H23: 1.506920686e-06 | I23: 0.01096007381 | J23: 0.9865944032 | K23: 0.002445523024 | M23: =SQRT((Animation!$N25-M$7)^2+(Animation!$O25-N$7)^2) -> 5.700794972 | N23: =SQRT((Animation!$N25-M$8)^2+(Animation!$O25-N$8)^2) -> 3.406308819 | O23: =SQRT((Animation!$N25-M$9)^2+(Animation!$O25-N$9)^2) -> 4.487611667 | P23: 3.498067092e-08 | Q23: 0.001206045542 | R23: 1.689880295e-05 | S23: 0.001222979326 | T23: 2.860283096e-05 | U23: 0.9861536632 | V23: 0.01381773395 | X23: =SQRT((Animation!$N25-X$7)^2+(Animation!$O25-Y$7)^2) -> 6.281928066 | Y23: =SQRT((Animation!$N25-X$8)^2+(Animation!$O25-Y$8)^2) -> 2.573619324 | Z23: =SQRT((Animation!$N25-X$9)^2+(Animation!$O25-Y$9)^2) -> 4.661730155 | AA23: 1.075749028e-09 | AB23: 0.01454225475 | AC23: 7.619479076e-06 | AD23: 0.01454987531 | AE23: 7.39352747e-08 | AF23: 0.999476246 | AG23: 0.0005236800258 | AI23: =SQRT((Animation!$N25-AI$7)^2+(Animation!$O25-AJ$7)^2) -> 6.577766393 | AJ23: =SQRT((Animation!$N25-AI$8)^2+(Animation!$O25-AJ$8)^2) -> 2.657982259 | AK23: =SQRT((Animation!$N25-AI$9)^2+(Animation!$O25-AJ$9)^2) -> 4.590662146 | AL23: 1.605454731e-10 | AM23: 0.01166253889 | AN23: 1.058547262e-05 | AO23: 0.01167312452 | AP23: 1.375342761e-08 | AQ23: 0.999093162 | AR23: 0.0009068242695 | AT23: =SQRT((Animation!$N25-AT$7)^2+(Animation!$O25-AU$7)^2) -> 6.723555303 | AU23: =SQRT((Animation!$N25-AT$8)^2+(Animation!$O25-AU$8)^2) -> 2.942929316 | AV23: =SQRT((Animation!$N25-AT$9)^2+(Animation!$O25-AU$9)^2) -> 4.390452689 | AW23: 6.088486516e-11 | AX23: 0.005250904074 | AY23: 2.601139254e-05 | AZ23: 0.005276915528 | BA23: 1.153796471e-08 | BB23: 0.9950707088 | BC23: 0.00492927969 | BE23: =SQRT((Animation!$N25-BE$7)^2+(Animation!$O25-BF$7)^2) -> 6.961452004 | BF23: =SQRT((Animation!$N25-BE$8)^2+(Animation!$O25-BF$8)^2) -> 3.321039955 | BG23: =SQRT((Animation!$N25-BE$9)^2+(Animation!$O25-BF$9)^2) -> 4.20246955 | BH23: 1.195531063e-11 | BI23: 0.001606669743 | BJ23: 5.833468542e-05 | BK23: 0.00166500444 | BL23: 7.180347595e-09 | BM23: 0.9649642391 | BN23: 0.03503575367 | BP23: =SQRT((Animation!$N25-BP$7)^2+(Animation!$O25-BQ$7)^2) -> 7.034686405 | BQ23: =SQRT((Animation!$N25-BP$8)^2+(Animation!$O25-BQ$8)^2) -> 3.490582481 | BR23: =SQRT((Animation!$N25-BP$9)^2+(Animation!$O25-BQ$9)^2) -> 4.03487098 | BS23: 7.161190053e-12 | BT23: 0.0009018867861 | BU23: 0.0001163357159 | BV23: 0.001018222509 | BW23: 7.033030589e-09 | BX23: 0.8857462667 | BY23: 0.1142537263 | CA23: =SQRT((Animation!$N25-CA$7)^2+(Animation!$O25-CB$7)^2) -> 7.008790335 | CB23: =SQRT((Animation!$N25-CA$8)^2+(Animation!$O25-CB$8)^2) -> 3.582085625 | CC23: =SQRT((Animation!$N25-CA$9)^2+(Animation!$O25-CB$9)^2) -> 3.875890276 | CD23: 8.589251528e-12 | CE23: 0.0006525601451 | CF23: 0.0002181775778 | CG23: 0.0008707377316 | CH23: 9.864338269e-09 | CI23: 0.7494336371 | CJ23: 0.250566353 | CL23: =SQRT((Animation!$N25-CL$7)^2+(Animation!$O25-CM$7)^2) -> 6.982396639 | CM23: =SQRT((Animation!$N25-CL$8)^2+(Animation!$O25-CM$8)^2) -> 3.719712151 | CN23: =SQRT((Animation!$N25-CL$9)^2+(Animation!$O25-CM$9)^2) -> 3.672056624 | CO23: 1.033102154e-11 | CP23: 0.0003948250598 | CQ23: 0.0004708653162 | CR23: 0.0008656903863 | CS23: 1.193385269e-08 | CT23: 0.4560811418 | CU23: 0.5439188463 | CW23: =SQRT((Animation!$N25-CW$7)^2+(Animation!$O25-CX$7)^2) -> 6.950271843 | CX23: =SQRT((Animation!$N25-CW$8)^2+(Animation!$O25-CX$8)^2) -> 4.041973114 | CY23: =SQRT((Animation!$N25-CW$9)^2+(Animation!$O25-CX$9)^2) -> 3.320782663 | CZ23: 1.292215441e-11 | DA23: 0.0001130464388 | DB23: 0.001608043137 | DC23: 0.001721089589 | DD23: 7.50812421e-09 | DE23: 0.06568306465 | DF23: 0.9343169278 | DH23: =SQRT((Animation!$N25-DH$7)^2+(Animation!$O25-DI$7)^2) -> 6.888524781 | DI23: =SQRT((Animation!$N25-DH$8)^2+(Animation!$O25-DI$8)^2) -> 4.568236149 | DJ23: =SQRT((Animation!$N25-DH$9)^2+(Animation!$O25-DI$9)^2) -> 2.911936964 | DK23: 1.981017622e-11 | DL23: 1.173037076e-05 | DM23: 0.0057495886 | DN23: 0.00576131899 | DO23: 3.438479322e-09 | DP23: 0.002036056461 | DQ23: 0.9979639401 | DS23: =SQRT((Animation!$N25-DS$7)^2+(Animation!$O25-DT$7)^2) -> 6.772785456 | DT23: =SQRT((Animation!$N25-DS$8)^2+(Animation!$O25-DT$8)^2) -> 4.674699663 | DU23: =SQRT((Animation!$N25-DS$9)^2+(Animation!$O25-DT$9)^2) -> 2.741363363 | DV23: 4.367479531e-11 | DW23: 7.171849399e-06 | DX23: 0.009311779414 | DY23: 0.009318951308 | DZ23: 4.686664183e-09 | EA23: 0.0007695983338 | EB23: 0.999230397 | ED23: =SQRT((Animation!$N25-ED$7)^2+(Animation!$O25-EE$7)^2) -> 6.674514683 | EE23: =SQRT((Animation!$N25-ED$8)^2+(Animation!$O25-EE$8)^2) -> 4.677911214 | EF23: =SQRT((Animation!$N25-ED$9)^2+(Animation!$O25-EE$9)^2) -> 2.626156995 | EG23: 8.456406879e-11 | EH23: 7.064945926e-06 | EI23: 0.01268558697 | EJ23: 0.012692652 | EK23: 6.662442866e-09 | EL23: 0.0005566170037 | EM23: 0.9994433763 | EO23: =SQRT((Animation!$N25-EO$7)^2+(Animation!$O25-EP$7)^2) -> 6.602547733 | EP23: =SQRT((Animation!$N25-EO$8)^2+(Animation!$O25-EP$8)^2) -> 4.678401976 | EQ23: =SQRT((Animation!$N25-EO$9)^2+(Animation!$O25-EP$9)^2) -> 2.529961398 | ER23: 1.363553438e-10 | ES23: 7.048744374e-06 | ET23: 0.01625603798 | EU23: 0.01626308686 | EV23: 8.38434579e-09 | EW23: 0.000433419832 | EX23: 0.9995665718 | EZ23: =SQRT((Animation!$N25-EZ$7)^2+(Animation!$O25-FA$7)^2) -> 6.551901624 | FA23: =SQRT((Animation!$N25-EZ$8)^2+(Animation!$O25-FA$8)^2) -> 4.678648098 | FB23: =SQRT((Animation!$N25-EZ$9)^2+(Animation!$O25-FA$9)^2) -> 2.455752097 | FC23: 1.902568755e-10 | FD23: 7.040632519e-06 | FE23: 0.0195594308 | FF23: 0.01956647163 | FG23: 9.723616966e-09 | FH23: 0.0003598314838 | FI23: 0.9996401588 | FK23: =SQRT((Animation!$N25-FK$7)^2+(Animation!$O25-FL$7)^2) -> 6.518025952 | FL23: =SQRT((Animation!$N25-FK$8)^2+(Animation!$O25-FL$8)^2) -> 4.678763221 | FM23: =SQRT((Animation!$N25-FK$9)^2+(Animation!$O25-FL$9)^2) -> 2.403962326 | FN23: 2.374011741e-10 | FO23: 7.036841272e-06 | FP23: 0.02218240293 | FQ23: 0.02218944001 | FR23: 1.069883576e-08 | FS23: 0.000317125681 | FT23: 0.9996828636 | FV23: =SQRT((Animation!$N25-FV$7)^2+(Animation!$O25-FW$7)^2) -> 6.496379765 | FW23: =SQRT((Animation!$N25-FV$8)^2+(Animation!$O25-FW$8)^2) -> 4.678805993 | FX23: =SQRT((Animation!$N25-FV$9)^2+(Animation!$O25-FW$9)^2) -> 2.370560497 | FY23: 2.733102395e-10 | FZ23: 7.035433202e-06 | GA23: 0.02402363678 | GB23: 0.02403067249 | GC23: 1.137339122e-08 | GD23: 0.0002927688855 | GE23: 0.9997072197 | GG23: =SQRT((Animation!$N25-GG$7)^2+(Animation!$O25-GH$7)^2) -> 6.483024119 | GH23: =SQRT((Animation!$N25-GG$8)^2+(Animation!$O25-GH$8)^2) -> 4.67881689 | GI23: =SQRT((Animation!$N25-GG$9)^2+(Animation!$O25-GH$9)^2) -> 2.350059389 | GJ23: 2.980560993e-10 | GK23: 7.035074483e-06 | GL23: 0.02521470053 | GM23: 0.02522173591 | GN23: 1.181743003e-08 | GO23: 0.000278929036 | GP23: 0.9997210591 | GR23: =SQRT((Animation!$N25-GR$7)^2+(Animation!$O25-GS$7)^2) -> 6.474983314 | GS23: =SQRT((Animation!$N25-GR$8)^2+(Animation!$O25-GS$8)^2) -> 4.678816895 | GT23: =SQRT((Animation!$N25-GR$9)^2+(Animation!$O25-GS$9)^2) -> 2.337817804 | GU23: 3.139953326e-10 | GV23: 7.035074321e-06 | GW23: 0.02594867903 | GX23: 0.02595571442 | GY23: 1.209734887e-08 | GZ23: 0.0002710414442 | HA23: 0.9997289465 | HC23: =SQRT((Animation!$N25-HC$7)^2+(Animation!$O25-HD$7)^2) -> 6.470219074 | HD23: =SQRT((Animation!$N25-HC$8)^2+(Animation!$O25-HD$8)^2) -> 4.678814404 | HE23: =SQRT((Animation!$N25-HC$9)^2+(Animation!$O25-HD$9)^2) -> 2.330614065 | HF23: 3.23828854e-10 | HG23: 7.035156321e-06 | HH23: 0.02638869728 | HI23: 0.02639573276 | HJ23: 1.226822748e-08 | HK23: 0.0002665262747 | HL23: 0.9997334615 | HN23: =SQRT((Animation!$N25-HN$7)^2+(Animation!$O25-HO$7)^2) -> 6.46742402 | HO23: =SQRT((Animation!$N25-HN$8)^2+(Animation!$O25-HO$8)^2) -> 4.678812048 | HP23: =SQRT((Animation!$N25-HN$9)^2+(Animation!$O25-HO$9)^2) -> 2.326407703 | HQ23: 3.297371613e-10 | HR23: 7.035233869e-06 | HS23: 0.0266484329 | HT23: 0.02665546846 | HU23: 1.237033826e-08 | HV23: 0.0002639321038 | HW23: 0.9997360555
B24: =SQRT((Animation!$N26-B$7)^2+(Animation!$O26-C$7)^2) -> 4.123105626 | C24: =SQRT((Animation!$N26-B$8)^2+(Animation!$O26-C$8)^2) -> 4 | D24: =SQRT((Animation!$N26-B$9)^2+(Animation!$O26-C$9)^2) -> 7.615773106 | E24: 8.117213512e-05 | F24: 0.0001338302258 | G24: 1.014775774e-13 | H24: 0.000215002361 | I24: 0.3775406686 | J24: 0.6224593309 | K24: 4.719835491e-10 | M24: =SQRT((Animation!$N26-M$7)^2+(Animation!$O26-N$7)^2) -> 3.669499789 | N24: =SQRT((Animation!$N26-M$8)^2+(Animation!$O26-N$8)^2) -> 3.026483948 | O24: =SQRT((Animation!$N26-M$9)^2+(Animation!$O26-N$9)^2) -> 4.724826139 | P24: 0.0004753054613 | Q24: 0.004091919614 | R24: 5.66655305e-06 | S24: 0.004572891629 | T24: 0.1039398044 | U24: 0.8948210337 | V24: 0.001239161894 | X24: =SQRT((Animation!$N26-X$7)^2+(Animation!$O26-Y$7)^2) -> 4.201993053 | Y24: =SQRT((Animation!$N26-X$8)^2+(Animation!$O26-Y$8)^2) -> 2.154721324 | Z24: =SQRT((Animation!$N26-X$9)^2+(Animation!$O26-Y$9)^2) -> 4.571363469 | AA24: 5.845160896e-05 | AB24: 0.03915016957 | AC24: 1.156392159e-05 | AD24: 0.0392201851 | AE24: 0.001490345056 | AF24: 0.9982148088 | AG24: 0.0002948461758 | AI24: =SQRT((Animation!$N26-AI$7)^2+(Animation!$O26-AJ$7)^2) -> 4.558343303 | AJ24: =SQRT((Animation!$N26-AI$8)^2+(Animation!$O26-AJ$8)^2) -> 1.751182675 | AK24: =SQRT((Animation!$N26-AI$9)^2+(Animation!$O26-AJ$9)^2) -> 4.52261659 | AL24: 1.227206069e-05 | AM24: 0.0860988767 | AN24: 1.443335161e-05 | AO24: 0.08612558211 | AP24: 0.0001424903076 | AQ24: 0.9996899247 | AR24: 0.0001675849528 | AT24: =SQRT((Animation!$N26-AT$7)^2+(Animation!$O26-AU$7)^2) -> 4.855226657 | AU24: =SQRT((Animation!$N26-AT$8)^2+(Animation!$O26-AU$8)^2) -> 1.430455784 | AV24: =SQRT((Animation!$N26-AT$9)^2+(Animation!$O26-AU$9)^2) -> 4.420458649 | AW24: 3.034234226e-06 | AX24: 0.1434110339 | AY24: 2.279052075e-05 | AZ24: 0.1434368587 | BA24: 2.115379724e-05 | BB24: 0.9998199573 | BC24: 0.0001588888725 | BE24: =SQRT((Animation!$N26-BE$7)^2+(Animation!$O26-BF$7)^2) -> 5.366311938 | BF24: =SQRT((Animation!$N26-BE$8)^2+(Animation!$O26-BF$8)^2) -> 1.104295501 | BG24: =SQRT((Animation!$N26-BE$9)^2+(Animation!$O26-BF$9)^2) -> 4.342972314 | BH24: 2.226665583e-07 | BI24: 0.2168232422 | BJ24: 3.200421987e-05 | BK24: 0.216855469 | BL24: 1.026797061e-06 | BM24: 0.99985139 | BN24: 0.0001475831807 | BP24: =SQRT((Animation!$N26-BP$7)^2+(Animation!$O26-BQ$7)^2) -> 5.557799855 | BQ24: =SQRT((Animation!$N26-BP$8)^2+(Animation!$O26-BQ$8)^2) -> 0.9586230571 | BR24: =SQRT((Animation!$N26-BP$9)^2+(Animation!$O26-BQ$9)^2) -> 4.277579453 | BS24: 7.823817412e-08 | BT24: 0.2519769621 | BU24: 4.24246278e-05 | BV24: 0.2520194649 | BW24: 3.104449656e-07 | BX24: 0.9998313509 | BY24: 0.0001683386948 | CA24: =SQRT((Animation!$N26-CA$7)^2+(Animation!$O26-CB$7)^2) -> 5.548659348 | CB24: =SQRT((Animation!$N26-CA$8)^2+(Animation!$O26-CB$8)^2) -> 0.8883623337 | CC24: =SQRT((Animation!$N26-CA$9)^2+(Animation!$O26-CB$9)^2) -> 4.209119918 | CD24: 8.231200997e-08 | CE24: 0.2688686386 | CF24: 5.67256666e-05 | CG24: 0.2689254465 | CH24: 3.060774316e-07 | CI24: 0.9997887594 | CJ24: 0.0002109345446 | CL24: =SQRT((Animation!$N26-CL$7)^2+(Animation!$O26-CM$7)^2) -> 5.534626181 | CM24: =SQRT((Animation!$N26-CL$8)^2+(Animation!$O26-CM$8)^2) -> 0.8137985023 | CN24: =SQRT((Animation!$N26-CL$9)^2+(Animation!$O26-CM$9)^2) -> 4.122596471 | CO24: 8.896862861e-08 | CP24: 0.2864840162 | CQ24: 8.134270801e-05 | CR24: 0.2865654478 | CS24: 3.104653031e-07 | CT24: 0.9997158357 | CU24: 0.0002838538583 | CW24: =SQRT((Animation!$N26-CW$7)^2+(Animation!$O26-CX$7)^2) -> 5.518225865 | CX24: =SQRT((Animation!$N26-CW$8)^2+(Animation!$O26-CX$8)^2) -> 0.7315331381 | CY24: =SQRT((Animation!$N26-CW$9)^2+(Animation!$O26-CX$9)^2) -> 3.985181697 | CZ24: 9.740903359e-08 | DA24: 0.3052851872 | DB24: 0.0001419869914 | DC24: 0.3054272716 | DD24: 3.189270987e-07 | DE24: 0.9995348012 | DF24: 0.0004648798737 | DH24: =SQRT((Animation!$N26-DH$7)^2+(Animation!$O26-DI$7)^2) -> 5.48884615 | DI24: =SQRT((Animation!$N26-DH$8)^2+(Animation!$O26-DI$8)^2) -> 0.8821957783 | DJ24: =SQRT((Animation!$N26-DH$9)^2+(Animation!$O26-DI$9)^2) -> 3.853445238 | DK24: 1.145041739e-07 | DL24: 0.2703404391 | DM24: 0.0002379479434 | DN24: 0.2705785015 | DO24: 4.231828223e-07 | DP24: 0.9991201723 | DQ24: 0.0008794044687 | DS24: =SQRT((Animation!$N26-DS$7)^2+(Animation!$O26-DT$7)^2) -> 5.437716021 | DT24: =SQRT((Animation!$N26-DS$8)^2+(Animation!$O26-DT$8)^2) -> 0.9420742004 | DU24: =SQRT((Animation!$N26-DS$9)^2+(Animation!$O26-DT$9)^2) -> 3.796984132 | DV24: 1.51403664e-07 | DW24: 0.2559711765 | DX24: 0.0002953106272 | DY24: 0.2562666385 | DZ24: 5.908052056e-07 | EA24: 0.9988470523 | EB24: 0.001152356893 | ED24: =SQRT((Animation!$N26-ED$7)^2+(Animation!$O26-EE$7)^2) -> 5.395973753 | EE24: =SQRT((Animation!$N26-ED$8)^2+(Animation!$O26-EE$8)^2) -> 0.9436122761 | EF24: =SQRT((Animation!$N26-ED$9)^2+(Animation!$O26-EE$9)^2) -> 3.755564423 | EG24: 1.898170912e-07 | EH24: 0.2556002453 | EI24: 0.0003453091002 | EJ24: 0.2559457442 | EK24: 7.416301912e-07 | EL24: 0.9986501088 | EM24: 0.001349149607 | EO24: =SQRT((Animation!$N26-EO$7)^2+(Animation!$O26-EP$7)^2) -> 5.365809306 | EP24: =SQRT((Animation!$N26-EO$8)^2+(Animation!$O26-EP$8)^2) -> 0.943977386 | EQ24: =SQRT((Animation!$N26-EO$9)^2+(Animation!$O26-EP$9)^2) -> 3.723335899 | ER24: 2.232679346e-07 | ES24: 0.2555121834 | ET24: 0.0003895362452 | EU24: 0.2559019429 | EV24: 8.724745583e-07 | EW24: 0.9984769185 | EX24: 0.001522209018 | EZ24: =SQRT((Animation!$N26-EZ$7)^2+(Animation!$O26-FA$7)^2) -> 5.344402361 | FA24: =SQRT((Animation!$N26-EZ$8)^2+(Animation!$O26-FA$8)^2) -> 0.944224313 | FB24: =SQRT((Animation!$N26-EZ$9)^2+(Animation!$O26-FA$9)^2) -> 3.700050119 | FC24: 2.503873213e-07 | FD24: 0.2554526243 | FE24: 0.0004247015059 | FF24: 0.2558775762 | FG24: 9.785434308e-07 | FH24: 0.9983392375 | FI24: 0.001659783996 | FK24: =SQRT((Animation!$N26-FK$7)^2+(Animation!$O26-FL$7)^2) -> 5.329713713 | FL24: =SQRT((Animation!$N26-FK$8)^2+(Animation!$O26-FL$8)^2) -> 0.9443905377 | FM24: =SQRT((Animation!$N26-FK$9)^2+(Animation!$O26-FL$9)^2) -> 3.684709744 | FN24: 2.708061287e-07 | FO24: 0.2554125298 | FP24: 0.0004494520058 | FQ24: 0.2558622526 | FR24: 1.058405943e-06 | FS24: 0.9982423245 | FT24: 0.001756617091 | FV24: =SQRT((Animation!$N26-FV$7)^2+(Animation!$O26-FW$7)^2) -> 5.320037912 | FW24: =SQRT((Animation!$N26-FV$8)^2+(Animation!$O26-FW$8)^2) -> 0.9444955402 | FX24: =SQRT((Animation!$N26-FV$9)^2+(Animation!$O26-FW$9)^2) -> 3.675267751 | FY24: 2.851244101e-07 | FZ24: 0.2553872021 | GA24: 0.0004653433418 | GB24: 0.2558528305 | GC24: 1.114407879e-06 | GD24: 0.9981800926 | GE24: 0.001818793018 | GG24: =SQRT((Animation!$N26-GG$7)^2+(Animation!$O26-GH$7)^2) -> 5.313912164 | GH24: =SQRT((Animation!$N26-GG$8)^2+(Animation!$O26-GH$8)^2) -> 0.9445585855 | GI24: =SQRT((Animation!$N26-GG$9)^2+(Animation!$O26-GH$9)^2) -> 3.66967047 | GJ24: 2.945639306e-07 | GK24: 0.2553719947 | GL24: 0.0004750078572 | GM24: 0.2558472972 | GN24: 1.151327115e-06 | GO24: 0.9981422418 | GP24: 0.0018566069 | GR24: =SQRT((Animation!$N26-GR$7)^2+(Animation!$O26-GS$7)^2) -> 5.310156397 | GS24: =SQRT((Animation!$N26-GR$8)^2+(Animation!$O26-GS$8)^2) -> 0.9445954101 | GT24: =SQRT((Animation!$N26-GR$9)^2+(Animation!$O26-GS$9)^2) -> 3.666407158 | GU24: 3.004997201e-07 | GV24: 0.2553631121 | GW24: 0.000480727845 | GX24: 0.2558441405 | GY24: 1.174542124e-06 | GZ24: 0.9981198383 | HA24: 0.001878987121 | HC24: =SQRT((Animation!$N26-HC$7)^2+(Animation!$O26-HD$7)^2) -> 5.307904928 | HD24: =SQRT((Animation!$N26-HC$8)^2+(Animation!$O26-HD$8)^2) -> 0.9446166898 | HE24: =SQRT((Animation!$N26-HC$9)^2+(Animation!$O26-HD$9)^2) -> 3.664516253 | HF24: 3.041131822e-07 | HG24: 0.2553579791 | HH24: 0.0004840713635 | HI24: 0.2558423546 | HJ24: 1.188674106e-06 | HK24: 0.9981067424 | HL24: 0.001892068904 | HN24: =SQRT((Animation!$N26-HN$7)^2+(Animation!$O26-HO$7)^2) -> 5.306574592 | HO24: =SQRT((Animation!$N26-HN$8)^2+(Animation!$O26-HO$8)^2) -> 0.944628955 | HP24: =SQRT((Animation!$N26-HN$9)^2+(Animation!$O26-HO$9)^2) -> 3.663422636 | HQ24: 3.062679435e-07 | HR24: 0.2553550206 | HS24: 0.000486014918 | HT24: 0.2558413418 | HU24: 1.197101068e-06 | HV24: 0.9980991298 | HW24: 0.001899673112
B25: =SQRT((Animation!$N27-B$7)^2+(Animation!$O27-C$7)^2) -> 2.236067977 | C25: =SQRT((Animation!$N27-B$8)^2+(Animation!$O27-C$8)^2) -> 1.414213562 | D25: =SQRT((Animation!$N27-B$9)^2+(Animation!$O27-C$9)^2) -> 2.828427125 | E25: 0.03274717654 | F25: 0.1467626632 | G25: 0.007306882745 | H25: 0.1868167225 | I25: 0.1752903921 | J25: 0.7855970346 | K25: 0.03911257327 | M25: =SQRT((Animation!$N27-M$7)^2+(Animation!$O27-N$7)^2) -> 2.607495815 | N25: =SQRT((Animation!$N27-M$8)^2+(Animation!$O27-N$8)^2) -> 2.190004749 | O25: =SQRT((Animation!$N27-M$9)^2+(Animation!$O27-N$9)^2) -> 0.51628093 | P25: 0.01332043782 | Q25: 0.03626149177 | R25: 0.3491647055 | S25: 0.3987466351 | T25: 0.0334057686 | U25: 0.09093867778 | V25: 0.8756555536 | X25: =SQRT((Animation!$N27-X$7)^2+(Animation!$O27-Y$7)^2) -> 2.801476815 | Y25: =SQRT((Animation!$N27-X$8)^2+(Animation!$O27-Y$8)^2) -> 3.475729687 | Z25: =SQRT((Animation!$N27-X$9)^2+(Animation!$O27-Y$9)^2) -> 0.5276713029 | AA25: 0.007882779522 | AB25: 0.0009497735569 | AC25: 0.3470949049 | AD25: 0.355927458 | AE25: 0.02214715202 | AF25: 0.002668446998 | AG25: 0.975184401 | AI25: =SQRT((Animation!$N27-AI$7)^2+(Animation!$O27-AJ$7)^2) -> 2.850110156 | AJ25: =SQRT((Animation!$N27-AI$8)^2+(Animation!$O27-AJ$8)^2) -> 3.893627472 | AK25: =SQRT((Animation!$N27-AI$9)^2+(Animation!$O27-AJ$9)^2) -> 0.5794402908 | AL25: 0.006870609314 | AM25: 0.0002036503556 | AN25: 0.3372893679 | AO25: 0.3443636276 | AP25: 0.0199516115 | AQ25: 0.0005913817235 | AR25: 0.9794570068 | AT25: =SQRT((Animation!$N27-AT$7)^2+(Animation!$O27-AU$7)^2) -> 2.753014645 | AU25: =SQRT((Animation!$N27-AT$8)^2+(Animation!$O27-AU$8)^2) -> 4.036909548 | AV25: =SQRT((Animation!$N27-AT$9)^2+(Animation!$O27-AU$9)^2) -> 0.7204911384 | AW25: 0.009018445021 | AX25: 0.0001153824978 | AY25: 0.3077423804 | AZ25: 0.3168762079 | BA25: 0.02846046752 | BB25: 0.0003641248379 | BC25: 0.9711754076 | BE25: =SQRT((Animation!$N27-BE$7)^2+(Animation!$O27-BF$7)^2) -> 2.615307831 | BF25: =SQRT((Animation!$N27-BE$8)^2+(Animation!$O27-BF$8)^2) -> 4.143372031 | BG25: =SQRT((Animation!$N27-BE$9)^2+(Animation!$O27-BF$9)^2) -> 0.868213176 | BH25: 0.01305144978 | BI25: 7.4649672e-05 | BJ25: 0.2736690929 | BK25: 0.2867951923 | BL25: 0.04550790991 | BM25: 0.0002602891331 | BN25: 0.954231801 | BP25: =SQRT((Animation!$N27-BP$7)^2+(Animation!$O27-BQ$7)^2) -> 2.558016848 | BQ25: =SQRT((Animation!$N27-BP$8)^2+(Animation!$O27-BQ$8)^2) -> 4.219253407 | BR25: =SQRT((Animation!$N27-BP$9)^2+(Animation!$O27-BQ$9)^2) -> 1.013070659 | BS25: 0.01513623665 | BT25: 5.435422612e-05 | BU25: 0.2388081872 | BV25: 0.253998778 | BW25: 0.05959176957 | BX25: 0.0002139940457 | BY25: 0.9401942364 | CA25: =SQRT((Animation!$N27-CA$7)^2+(Animation!$O27-CB$7)^2) -> 2.52547864 | CB25: =SQRT((Animation!$N27-CA$8)^2+(Animation!$O27-CB$8)^2) -> 4.258752112 | CC25: =SQRT((Animation!$N27-CA$9)^2+(Animation!$O27-CB$9)^2) -> 1.160548442 | CD25: 0.01644128524 | CE25: 4.59745163e-05 | CF25: 0.2034418882 | CG25: 0.219929148 | CH25: 0.07475719063 | CI25: 0.0002090423972 | CJ25: 0.925033767 | CL25: =SQRT((Animation!$N27-CL$7)^2+(Animation!$O27-CM$7)^2) -> 2.496458649 | CM25: =SQRT((Animation!$N27-CL$8)^2+(Animation!$O27-CM$8)^2) -> 4.298240453 | CN25: =SQRT((Animation!$N27-CL$9)^2+(Animation!$O27-CM$9)^2) -> 1.355217807 | CO25: 0.01768406324 | CP25: 3.882780164e-05 | CQ25: 0.1592553825 | CR25: 0.1769782736 | CS25: 0.09992222709 | CT25: 0.0002193930411 | CU25: 0.8998583799 | CW25: =SQRT((Animation!$N27-CW$7)^2+(Animation!$O27-CX$7)^2) -> 2.460645167 | CX25: =SQRT((Animation!$N27-CW$8)^2+(Animation!$O27-CX$8)^2) -> 4.39240836 | CY25: =SQRT((Animation!$N27-CW$9)^2+(Animation!$O27-CX$9)^2) -> 1.697523594 | CZ25: 0.01932557651 | DA25: 2.578895826e-05 | DB25: 0.09444555862 | DC25: 0.1137969241 | DD25: 0.1698251219 | DE25: 0.0002266226304 | DF25: 0.8299482555 | DH25: =SQRT((Animation!$N27-DH$7)^2+(Animation!$O27-DI$7)^2) -> 2.390249638 | DI25: =SQRT((Animation!$N27-DH$8)^2+(Animation!$O27-DI$8)^2) -> 4.588460288 | DJ25: =SQRT((Animation!$N27-DH$9)^2+(Animation!$O27-DI$9)^2) -> 2.100608789 | DK25: 0.02292367179 | DL25: 1.069298713e-05 | DM25: 0.04392739265 | DN25: 0.06686175743 | DO25: 0.3428517686 | DP25: 0.0001599268034 | DQ25: 0.6569883046 | DS25: =SQRT((Animation!$N27-DS$7)^2+(Animation!$O27-DT$7)^2) -> 2.255951207 | DT25: =SQRT((Animation!$N27-DS$8)^2+(Animation!$O27-DT$8)^2) -> 4.639025512 | DU25: =SQRT((Animation!$N27-DS$9)^2+(Animation!$O27-DT$9)^2) -> 2.271239526 | DV25: 0.03131692923 | DW25: 8.467990021e-06 | DX25: 0.03025169617 | DY25: 0.06157709339 | DZ25: 0.5085808295 | EA25: 0.0001375185082 | EB25: 0.491281652 | ED25: =SQRT((Animation!$N27-ED$7)^2+(Animation!$O27-EE$7)^2) -> 2.141588172 | EE25: =SQRT((Animation!$N27-ED$8)^2+(Animation!$O27-EE$8)^2) -> 4.641054871 | EF25: =SQRT((Animation!$N27-ED$9)^2+(Animation!$O27-EE$9)^2) -> 2.387618014 | EG25: 0.04027040358 | EH25: 8.388627067e-06 | EI25: 0.02306824175 | EJ25: 0.06334703396 | EK25: 0.635710957 | EL25: 0.0001324233598 | EM25: 0.3641566196 | EO25: =SQRT((Animation!$N27-EO$7)^2+(Animation!$O27-EP$7)^2) -> 2.05815199 | EP25: =SQRT((Animation!$N27-EO$8)^2+(Animation!$O27-EP$8)^2) -> 4.641210306 | EQ25: =SQRT((Animation!$N27-EO$9)^2+(Animation!$O27-EP$9)^2) -> 2.484883583 | ER25: 0.04798180803 | ES25: 8.382577742e-06 | ET25: 0.01820130938 | EU25: 0.0661915 | EV25: 0.7248938011 | EW25: 0.000126641302 | EX25: 0.2749795576 | EZ25: =SQRT((Animation!$N27-EZ$7)^2+(Animation!$O27-FA$7)^2) -> 1.99993765 | FA25: =SQRT((Animation!$N27-EZ$8)^2+(Animation!$O27-FA$8)^2) -> 4.641211907 | FB25: =SQRT((Animation!$N27-EZ$9)^2+(Animation!$O27-FA$9)^2) -> 2.55997048 | FC25: 0.0539976995 | FD25: 8.382515452e-06 | FE25: 0.01506075444 | FF25: 0.06906683645 | FG25: 0.7818180515 | FH25: 0.0001213681686 | FI25: 0.2180605803 | FK25: =SQRT((Animation!$N27-FK$7)^2+(Animation!$O27-FL$7)^2) -> 1.961487301 | FL25: =SQRT((Animation!$N27-FK$8)^2+(Animation!$O27-FL$8)^2) -> 4.641151925 | FM25: =SQRT((Animation!$N27-FK$9)^2+(Animation!$O27-FL$9)^2) -> 2.612389128 | FN25: 0.0582707662 | FO25: 8.384849364e-06 | FP25: 0.01315140066 | FQ25: 0.07143055171 | FR25: 0.8157681105 | FS25: 0.0001173846367 | FT25: 0.1841145049 | FV25: =SQRT((Animation!$N27-FV$7)^2+(Animation!$O27-FW$7)^2) -> 1.93724241 | FW25: =SQRT((Animation!$N27-FV$8)^2+(Animation!$O27-FW$8)^2) -> 4.641077857 | FX25: =SQRT((Animation!$N27-FV$9)^2+(Animation!$O27-FW$9)^2) -> 2.646196109 | FY25: 0.06109088473 | FZ25: 8.387732212e-06 | GA25: 0.01203284292 | GB25: 0.07313211538 | GC25: 0.8353496191 | GD25: 0.0001146928701 | GE25: 0.1645356881 | GG25: =SQRT((Animation!$N27-GG$7)^2+(Animation!$O27-GH$7)^2) -> 1.922448154 | GH25: =SQRT((Animation!$N27-GG$8)^2+(Animation!$O27-GH$8)^2) -> 4.641015529 | GI25: =SQRT((Animation!$N27-GG$9)^2+(Animation!$O27-GH$9)^2) -> 2.666942246 | GJ25: 0.06286020509 | GK25: 8.390158847e-06 | GL25: 0.01138761399 | GM25: 0.07425620925 | GN25: 0.8465312966 | GO25: 0.0001129893235 | GP25: 0.1533557141 | GR25: =SQRT((Animation!$N27-GR$7)^2+(Animation!$O27-GS$7)^2) -> 1.91361128 | GS25: =SQRT((Animation!$N27-GR$8)^2+(Animation!$O27-GS$8)^2) -> 4.640971442 | GT25: =SQRT((Animation!$N27-GR$9)^2+(Animation!$O27-GS$9)^2) -> 2.679327669 | GU25: 0.06393472753 | GV25: 8.39187573e-06 | GW25: 0.0110167668 | GX25: 0.07495988621 | GY25: 0.852919218 | GZ25: 0.0001119515537 | HA25: 0.1469688304 | HC25: =SQRT((Animation!$N27-HC$7)^2+(Animation!$O27-HD$7)^2) -> 1.908402141 | HD25: =SQRT((Animation!$N27-HC$8)^2+(Animation!$O27-HD$8)^2) -> 4.640942953 | HE25: =SQRT((Animation!$N27-HC$9)^2+(Animation!$O27-HD$9)^2) -> 2.686614878 | HF25: 0.06457435685 | HG25: 8.392985329e-06 | HH25: 0.01080346585 | HI25: 0.07538621569 | HJ25: 0.8565804273 | HK25: 0.0001113331562 | HL25: 0.1433082395 | HN25: =SQRT((Animation!$N27-HN$7)^2+(Animation!$O27-HO$7)^2) -> 1.905355721 | HO25: =SQRT((Animation!$N27-HN$8)^2+(Animation!$O27-HO$8)^2) -> 4.640925422 | HP25: =SQRT((Animation!$N27-HN$9)^2+(Animation!$O27-HO$9)^2) -> 2.690869507 | HQ25: 0.06495057094 | HR25: 8.393668225e-06 | HS25: 0.01068058272 | HT25: 0.07563954733 | HU25: 0.8586853469 | HV25: 0.000110969308 | HW25: 0.1412036838
B26: =SQRT((Animation!$N28-B$7)^2+(Animation!$O28-C$7)^2) -> 3.16227766 | C26: =SQRT((Animation!$N28-B$8)^2+(Animation!$O28-C$8)^2) -> 3.605551275 | D26: =SQRT((Animation!$N28-B$9)^2+(Animation!$O28-C$9)^2) -> 7.810249676 | E26: 0.002688051941 | F26: 0.0005997854601 | G26: 2.26427081e-14 | H26: 0.003287837401 | I26: 0.8175744762 | J26: 0.1824255238 | K26: 6.886808967e-12 | M26: =SQRT((Animation!$N28-M$7)^2+(Animation!$O28-N$7)^2) -> 2.640474429 | N26: =SQRT((Animation!$N28-M$8)^2+(Animation!$O28-N$8)^2) -> 3.605368142 | O26: =SQRT((Animation!$N28-M$9)^2+(Animation!$O28-N$9)^2) -> 4.82236894 | P26: 0.01221621467 | Q26: 0.0006001816171 | R26: 3.557118926e-06 | S26: 0.01281995341 | T26: 0.9529063237 | U26: 0.04681620893 | V26: 0.0002774673833 | X26: =SQRT((Animation!$N28-X$7)^2+(Animation!$O28-Y$7)^2) -> 2.926851249 | Y26: =SQRT((Animation!$N28-X$8)^2+(Animation!$O28-Y$8)^2) -> 3.532207272 | Z26: =SQRT((Animation!$N28-X$9)^2+(Animation!$O28-Y$9)^2) -> 4.531517398 | AA26: 0.005504619392 | AB26: 0.000779246882 | AC26: 1.386332771e-05 | AD26: 0.006297729602 | AE26: 0.8740641057 | AF26: 0.1237345728 | AG26: 0.002201321522 | AI26: =SQRT((Animation!$N28-AI$7)^2+(Animation!$O28-AJ$7)^2) -> 3.223968604 | AJ26: =SQRT((Animation!$N28-AI$8)^2+(Animation!$O28-AJ$8)^2) -> 3.347016118 | AK26: =SQRT((Animation!$N28-AI$9)^2+(Animation!$O28-AJ$9)^2) -> 4.513698435 | AL26: 0.00220743226 | AM26: 0.001473378846 | AN26: 1.502679954e-05 | AO26: 0.003695837905 | AP26: 0.5972751827 | AQ26: 0.3986589465 | AR26: 0.004065870832 | AT26: =SQRT((Animation!$N28-AT$7)^2+(Animation!$O28-AU$7)^2) -> 3.553825249 | AU26: =SQRT((Animation!$N28-AT$8)^2+(Animation!$O28-AU$8)^2) -> 3.057514984 | AV26: =SQRT((Animation!$N28-AT$9)^2+(Animation!$O28-AU$9)^2) -> 4.507588536 | AW26: 0.0007217906028 | AX26: 0.003723327686 | AY26: 1.54466912e-05 | AZ26: 0.00446056498 | BA26: 0.1618159596 | BB26: 0.8347210954 | BC26: 0.003462945001 | BE26: =SQRT((Animation!$N28-BE$7)^2+(Animation!$O28-BF$7)^2) -> 4.136451236 | BF26: =SQRT((Animation!$N28-BE$8)^2+(Animation!$O28-BF$8)^2) -> 2.684752912 | BG26: =SQRT((Animation!$N28-BE$9)^2+(Animation!$O28-BF$9)^2) -> 4.524368613 | BH26: 7.681943052e-05 | BI26: 0.01085762552 | BJ26: 1.431941559e-05 | BK26: 0.01094876437 | BL26: 0.007016264844 | BM26: 0.9916758784 | BN26: 0.001307856769 | BP26: =SQRT((Animation!$N28-BP$7)^2+(Animation!$O28-BQ$7)^2) -> 4.366409471 | BQ26: =SQRT((Animation!$N28-BP$8)^2+(Animation!$O28-BQ$8)^2) -> 2.521922463 | BR26: =SQRT((Animation!$N28-BP$9)^2+(Animation!$O28-BQ$9)^2) -> 4.54347603 | BS26: 2.889897678e-05 | BT26: 0.01658950541 | BU26: 1.313111765e-05 | BV26: 0.01663153551 | BW26: 0.001737601244 | BX26: 0.9974728675 | BY26: 0.0007895312881 | CA26: =SQRT((Animation!$N28-CA$7)^2+(Animation!$O28-CB$7)^2) -> 4.369852375 | CB26: =SQRT((Animation!$N28-CA$8)^2+(Animation!$O28-CB$8)^2) -> 2.434592897 | CC26: =SQRT((Animation!$N28-CA$9)^2+(Animation!$O28-CB$9)^2) -> 4.553968934 | CD26: 2.846761523e-05 | CE26: 0.0205980304 | CF26: 1.251910025e-05 | CG26: 0.02063901712 | CH26: 0.001379310607 | CI26: 0.998014115 | CJ26: 0.00060657444 | CL26: =SQRT((Animation!$N28-CL$7)^2+(Animation!$O28-CM$7)^2) -> 4.36656815 | CM26: =SQRT((Animation!$N28-CL$8)^2+(Animation!$O28-CM$8)^2) -> 2.300398302 | CN26: =SQRT((Animation!$N28-CL$9)^2+(Animation!$O28-CM$9)^2) -> 4.568743542 | CO26: 2.887896047e-05 | CP26: 0.02830109711 | CQ26: 1.170321102e-05 | CR26: 0.02834167928 | CS26: 0.001018957281 | CT26: 0.9985681098 | CU26: 0.0004129328718 | CW26: =SQRT((Animation!$N28-CW$7)^2+(Animation!$O28-CX$7)^2) -> 4.363600535 | CX26: =SQRT((Animation!$N28-CW$8)^2+(Animation!$O28-CX$8)^2) -> 1.985339313 | CY26: =SQRT((Animation!$N28-CW$9)^2+(Animation!$O28-CX$9)^2) -> 4.606323466 | CZ26: 2.925548886e-05 | DA26: 0.05559151894 | DB26: 9.849927449e-06 | DC26: 0.05563062436 | DD26: 0.0005258881992 | DE26: 0.9992970524 | DF26: 0.0001770594446 | DH26: =SQRT((Animation!$N28-DH$7)^2+(Animation!$O28-DI$7)^2) -> 4.361123824 | DI26: =SQRT((Animation!$N28-DH$8)^2+(Animation!$O28-DI$8)^2) -> 1.47693986 | DJ26: =SQRT((Animation!$N28-DH$9)^2+(Animation!$O28-DI$9)^2) -> 4.676813821 | DK26: 2.957328797e-05 | DL26: 0.1340403764 | DM26: 7.101302845e-06 | DN26: 0.134077051 | DO26: 0.00022056935 | DP26: 0.9997264663 | DQ26: 5.296434248e-05 | DS26: =SQRT((Animation!$N28-DS$7)^2+(Animation!$O28-DT$7)^2) -> 4.362575148 | DT26: =SQRT((Animation!$N28-DS$8)^2+(Animation!$O28-DT$8)^2) -> 1.377305743 | DU26: =SQRT((Animation!$N28-DS$9)^2+(Animation!$O28-DT$9)^2) -> 4.703277099 | DV26: 2.938666683e-05 | DW26: 0.1545211825 | DX26: 6.272432833e-06 | DY26: 0.1545568416 | DZ26: 0.0001901350113 | EA26: 0.9997692816 | EB26: 4.058333987e-05 | ED26: =SQRT((Animation!$N28-ED$7)^2+(Animation!$O28-EE$7)^2) -> 4.366587109 | EE26: =SQRT((Animation!$N28-ED$8)^2+(Animation!$O28-EE$8)^2) -> 1.374478932 | EF26: =SQRT((Animation!$N28-ED$9)^2+(Animation!$O28-EE$9)^2) -> 4.717509109 | EG26: 2.887656991e-05 | EH26: 0.1551233455 | EI26: 5.865724054e-06 | EJ26: 0.1551580878 | EK26: 0.0001861106328 | EL26: 0.9997760845 | EM26: 3.780482304e-05 | EO26: =SQRT((Animation!$N28-EO$7)^2+(Animation!$O28-EP$7)^2) -> 4.370305081 | EP26: =SQRT((Animation!$N28-EO$8)^2+(Animation!$O28-EP$8)^2) -> 1.373994223 | EQ26: =SQRT((Animation!$N28-EO$9)^2+(Animation!$O28-EP$9)^2) -> 4.731516127 | ER26: 2.841135168e-05 | ES26: 0.1552267085 | ET26: 5.490117165e-06 | EU26: 0.15526061 | EV26: 0.0001829913696 | EW26: 0.999781648 | EX26: 3.536065693e-05 | EZ26: =SQRT((Animation!$N28-EZ$7)^2+(Animation!$O28-FA$7)^2) -> 4.372763899 | FA26: =SQRT((Animation!$N28-EZ$8)^2+(Animation!$O28-FA$8)^2) -> 1.373725032 | FB26: =SQRT((Animation!$N28-EZ$9)^2+(Animation!$O28-FA$9)^2) -> 4.743703263 | FC26: 2.810759903e-05 | FD26: 0.1552841267 | FE26: 5.182106841e-06 | FF26: 0.1553174164 | FG26: 0.0001809687521 | FH26: 0.9997856666 | FI26: 3.33646217e-05 | FK26: =SQRT((Animation!$N28-FK$7)^2+(Animation!$O28-FL$7)^2) -> 4.373927944 | FL26: =SQRT((Animation!$N28-FK$8)^2+(Animation!$O28-FL$8)^2) -> 1.373578362 | FM26: =SQRT((Animation!$N28-FK$9)^2+(Animation!$O28-FL$9)^2) -> 4.752994291 | FN26: 2.796487327e-05 | FO26: 0.1553154155 | FP26: 4.958457289e-06 | FQ26: 0.1553483388 | FR26: 0.0001800139833 | FS26: 0.9997880677 | FT26: 3.191831549e-05 | FV26: =SQRT((Animation!$N28-FV$7)^2+(Animation!$O28-FW$7)^2) -> 4.37428057 | FW26: =SQRT((Animation!$N28-FV$8)^2+(Animation!$O28-FW$8)^2) -> 1.373506178 | FX26: =SQRT((Animation!$N28-FV$9)^2+(Animation!$O28-FW$9)^2) -> 4.759374287 | FY26: 2.792177281e-05 | FZ26: 0.1553308154 | GA26: 4.810255613e-06 | GB26: 0.1553635475 | GC26: 0.0001797189448 | GD26: 0.9997893198 | GE26: 3.096128849e-05 | GG26: =SQRT((Animation!$N28-GG$7)^2+(Animation!$O28-GH$7)^2) -> 4.374285639 | GH26: =SQRT((Animation!$N28-GG$8)^2+(Animation!$O28-GH$8)^2) -> 1.373472942 | GI26: =SQRT((Animation!$N28-GG$9)^2+(Animation!$O28-GH$9)^2) -> 4.763459975 | GJ26: 2.792115376e-05 | GK26: 0.1553379062 | GL26: 4.71758283e-06 | GM26: 0.1553705449 | GN26: 0.0001797068664 | GO26: 0.9997899297 | GP26: 3.036343106e-05 | GR26: =SQRT((Animation!$N28-GR$7)^2+(Animation!$O28-GS$7)^2) -> 4.374195949 | GS26: =SQRT((Animation!$N28-GR$8)^2+(Animation!$O28-GS$8)^2) -> 1.373457879 | GT26: =SQRT((Animation!$N28-GR$9)^2+(Animation!$O28-GS$9)^2) -> 4.765967414 | GU26: 2.79321101e-05 | GV26: 0.1553411201 | GW26: 4.661556143e-06 | GX26: 0.1553737138 | GY26: 0.0001797737173 | GZ26: 0.9997902241 | HA26: 3.000221871e-05 | HC26: =SQRT((Animation!$N28-HC$7)^2+(Animation!$O28-HD$7)^2) -> 4.37410696 | HD26: =SQRT((Animation!$N28-HC$8)^2+(Animation!$O28-HD$8)^2) -> 1.373450879 | HE26: =SQRT((Animation!$N28-HC$9)^2+(Animation!$O28-HD$9)^2) -> 4.767468272 | HF26: 2.794298481e-05 | HG26: 0.1553426134 | HH26: 4.628325616e-06 | HI26: 0.1553751848 | HJ26: 0.0001798420054 | HK26: 0.9997903699 | HL26: 2.978806187e-05 | HN26: =SQRT((Animation!$N28-HN$7)^2+(Animation!$O28-HO$7)^2) -> 4.37404178 | HO26: =SQRT((Animation!$N28-HN$8)^2+(Animation!$O28-HO$8)^2) -> 1.373447474 | HP26: =SQRT((Animation!$N28-HN$9)^2+(Animation!$O28-HO$9)^2) -> 4.76835369 | HQ26: 2.795095257e-05 | HR26: 0.1553433399 | HS26: 4.608827883e-06 | HT26: 0.1553758997 | HU26: 0.0001798924584 | HV26: 0.9997904451 | HW26: 2.96624373e-05
H27: TOTAL: | I27: =SUM(I17:I26) -> 4.087630332 | J27: =SUM(J17:J26) -> 5.858536022 | K27: =SUM(K17:K26) -> 0.05383364625 | S27: TOTAL: | T27: =SUM(T17:T26) -> 3.771990513 | U27: =SUM(U17:U26) -> 3.970956827 | V27: =SUM(V17:V26) -> 2.25705266 | AD27: TOTAL: | AE27: =SUM(AE17:AE26) -> 3.337019073 | AF27: =SUM(AF17:AF26) -> 3.796072781 | AG27: =SUM(AG17:AG26) -> 2.866908146 | AO27: TOTAL: | AP27: =SUM(AP17:AP26) -> 3.125378321 | AQ27: =SUM(AQ17:AQ26) -> 3.809603343 | AR27: =SUM(AR17:AR26) -> 3.065018336 | AZ27: TOTAL: | BA27: =SUM(BA17:BA26) -> 2.845868903 | BB27: =SUM(BB17:BB26) -> 4.053136933 | BC27: =SUM(BC17:BC26) -> 3.100994163 | BK27: TOTAL: | BL27: =SUM(BL17:BL26) -> 2.824878291 | BM27: =SUM(BM17:BM26) -> 4.060892616 | BN27: =SUM(BN17:BN26) -> 3.114229093 | BV27: TOTAL: | BW27: =SUM(BW17:BW26) -> 2.892742164 | BX27: =SUM(BX17:BX26) -> 3.943196817 | BY27: =SUM(BY17:BY26) -> 3.164061018 | CG27: TOTAL: | CH27: =SUM(CH17:CH26) -> 2.954417296 | CI27: =SUM(CI17:CI26) -> 3.787857414 | CJ27: =SUM(CJ17:CJ26) -> 3.257725289 | CR27: TOTAL: | CS27: =SUM(CS17:CS26) -> 3.024636461 | CT27: =SUM(CT17:CT26) -> 3.478455937 | CU27: =SUM(CU17:CU26) -> 3.496907602 | DC27: TOTAL: | DD27: =SUM(DD17:DD26) -> 3.142575932 | DE27: =SUM(DE17:DE26) -> 3.070139267 | DF27: =SUM(DF17:DF26) -> 3.787284802 | DN27: TOTAL: | DO27: =SUM(DO17:DO26) -> 3.34405609 | DP27: =SUM(DP17:DP26) -> 2.99365146 | DQ27: =SUM(DQ17:DQ26) -> 3.662292449 | DY27: TOTAL: | DZ27: =SUM(DZ17:DZ26) -> 3.523349595 | EA27: =SUM(EA17:EA26) -> 2.989586482 | EB27: =SUM(EB17:EB26) -> 3.487063922 | EJ27: TOTAL: | EK27: =SUM(EK17:EK26) -> 3.664025696 | EL27: =SUM(EL17:EL26) -> 2.988468621 | EM27: =SUM(EM17:EM26) -> 3.347505683 | EU27: TOTAL: | EV27: =SUM(EV17:EV26) -> 3.767340619 | EW27: =SUM(EW17:EW26) -> 2.987768423 | EX27: =SUM(EX17:EX26) -> 3.244890958 | FF27: TOTAL: | FG27: =SUM(FG17:FG26) -> 3.837555709 | FH27: =SUM(FH17:FH26) -> 2.987353315 | FI27: =SUM(FI17:FI26) -> 3.175090976 | FQ27: TOTAL: | FR27: =SUM(FR17:FR26) -> 3.882400346 | FS27: =SUM(FS17:FS26) -> 2.987134192 | FT27: =SUM(FT17:FT26) -> 3.130465463 | GB27: TOTAL: | GC27: =SUM(GC17:GC26) -> 3.909890738 | GD27: =SUM(GD17:GD26) -> 2.987026934 | GE27: =SUM(GE17:GE26) -> 3.103082329 | GM27: TOTAL: | GN27: =SUM(GN17:GN26) -> 3.926332116 | GO27: =SUM(GO17:GO26) -> 2.98697558 | GP27: =SUM(GP17:GP26) -> 3.086692304 | GX27: TOTAL: | GY27: =SUM(GY17:GY26) -> 3.936025692 | GZ27: =SUM(GZ17:GZ26) -> 2.986950544 | HA27: =SUM(HA17:HA26) -> 3.077023764 | HI27: TOTAL: | HJ27: =SUM(HJ17:HJ26) -> 3.941694181 | HK27: =SUM(HK17:HK26) -> 2.986937873 | HL27: =SUM(HL17:HL26) -> 3.071367946 | HT27: TOTAL: | HU27: =SUM(HU17:HU26) -> 3.944993384 | HV27: =SUM(HV17:HV26) -> 2.986931202 | HW27: =SUM(HW17:HW26) -> 3.068075414
A52: 0 | B52: ITERATIONS | E52: In these graphs, the three solid circles represent the cluster centroids. (Their areas are the cluster variances, so the diameter is about 1.1 standard deviations.) The white circles of area 1 are the data points. Each data point carries hollow circles in red, green, and blue indicating how strongly it is associated with each of those clusters. The area of the hollow red circle is proportional to p(point | red) or p(red | point). | L52: =A52+1 -> 1 | M52: ITERATION | P52: In these graphs, each cluster's center has been updated to be the centroid of the data points (or fractions of data points) that were placed in that cluster in the previous iteration. | W52: =L52+1 -> 2 | X52: ITERATIONS | AH52: =W52+1 -> 3 | AI52: ITERATIONS | AS52: =AH52+1 -> 4 | AT52: ITERATIONS | BD52: =AS52+1 -> 5 | BE52: ITERATIONS
